Workbook

Sheet LKCES (hidden)
A1: The Solow Model with Technological Progress with L and K
A2: Exogenous Variables | F2: Not using any efficiency workers or other clever solution tricks, just brute force simulation.
A3: g | B3: 0.01 | C3: labor-augmenting techD | F3: In steady state (long run equilibrium) when K/Y constant (this is balanced growth).
A4: n | B4: 0.01 | C4: %D population | F4: r --> 0 is Cobb Douglas; r = 1 is perfect substitutes (linear isoquants); r --> - inf is perfect complements (L isoquants)
A5: A | B5: 1 | C5: technology parameter | F5: Run Solver to find steady state.
A6: a1 | B6: 0.3 | C6: productivity of capital | E6: a2 | F6: 0.7 | G6: productivity of labor
A7: s | B7: 0.3 | C7: saving rate | E7: r | F7: 0.1 | G7: =1/(1-rho) ->  | H7: elasticity of subsitution
A8: d | B8: 0.1 | C8: depreciation
A9: Initial Conditions
A10: initial k | B10: 3.79997634 | C10: initial L | D10: 1
A13: Year | B13: L | C13: K | D13: Y | E13: C | F13: I | G13: depK | H13: DK | I13: %DK | J13: %DY | K13: K/Y | L13: r
A14: 2000 | B14: =D10 -> 1 | C14: =B10 -> 3.79997634 | D14: =A*(alpha1*C14^rho+alpha2*B14^rho)^(1/rho) ->  | E14: =(1-s)*D14 ->  | F14: =s*D14 ->  | G14: =dep*C14 -> 0.379997634 | H14: =F14-G14 ->  | K14: =C14/D14 ->  | L14: =alpha1/K14 -> 
A15: 2001 | B15: =(1+n)*B14 -> 1.01 | C15: =C14+H14 ->  | D15: =A*(alpha1*C15^rho+alpha2*((1+g)^(A15-$A$14)*B15)^rho)^(1/rho) ->  | H15: =F15-G15 ->  | I15: =(C15-C14)/C14 ->  | J15: =(D15-D14)/D14 ->  | K15: =C15/D15 ->  | M15: =K15-K14 ->  | N15: steady state condition
A16: 2002 | B16: 1.0201 | C16: =C15+H15 ->  | H16: =F16-G16 ->  | I16: =(C16-C15)/C15 ->  | J16: =(D16-D15)/D15 -> 
A17: 2003 | B17: 1.030301 | J17: =(D17-D16)/D16 -> 
A18: 2004 | B18: 1.04060401
A19: 2005 | B19: 1.05101005
A20: 2006 | B20: 1.061520151
A21: 2007 | B21: 1.072135352
A22: 2008 | B22: 1.082856706
A23: 2009 | B23: 1.093685273
A24: 2010 | B24: 1.104622125
A25: 2011 | B25: 1.115668347
A26: 2012 | B26: 1.12682503
A27: 2013 | B27: 1.13809328
A28: 2014 | B28: 1.149474213
A29: 2015 | B29: 1.160968955
A30: 2016 | B30: 1.172578645
A31: 2017 | B31: 1.184304431
A32: 2018 | B32: 1.196147476
A33: 2019 | B33: 1.20810895
A34: 2020 | B34: 1.22019004
A35: 2021 | B35: 1.23239194
A36: 2022 | B36: 1.24471586
A37: 2023 | B37: 1.257163018
A38: 2024 | B38: 1.269734649
A39: 2025 | B39: 1.282431995
A40: 2026 | B40: 1.295256315
A41: 2027 | B41: 1.308208878
A42: 2028 | B42: 1.321290967
A43: 2029 | B43: 1.334503877
A44: 2030 | B44: 1.347848915
A45: 2031 | B45: 1.361327404
A46: 2032 | B46: 1.374940679
A47: 2033 | B47: =(1+n)*B46 -> 1.388690085 | D47: =A*(alpha1*C47^rho+alpha2*((1+g)^(A47-$A$14)*B47)^rho)^(1/rho) -> 
A48: 2034 | B48: 1.402576986
A49: 2035 | B49: 1.416602756
A50: 2036 | B50: 1.430768784
A51: 2037 | B51: 1.445076471
A52: 2038 | B52: 1.459527236
A53: 2039 | B53: 1.474122509
A54: 2040 | B54: 1.488863734
A55: 2041 | B55: 1.503752371
A56: 2042 | B56: 1.518789895
A57: 2043 | B57: 1.533977794
A58: 2044 | B58: 1.549317572
A59: 2045 | B59: 1.564810747
A60: 2046 | B60: 1.580458855
A61: 2047 | B61: 1.596263443
A62: 2048 | B62: 1.612226078
A63: 2049 | B63: 1.628348338
A64: 2050 | B64: 1.644631822
A65: 2051 | B65: 1.66107814
A66: 2052 | B66: 1.677688921
A67: 2053 | B67: 1.694465811
A68: 2054 | B68: 1.711410469
A69: 2055 | B69: 1.728524573
A70: 2056 | B70: 1.745809819
A71: 2057 | B71: 1.763267917
A72: 2058 | B72: 1.780900597
A73: 2059 | B73: 1.798709603
A74: 2060 | B74: 1.816696699
A75: 2061 | B75: 1.834863666
A76: 2062 | B76: 1.853212302
A77: 2063 | B77: 1.871744425
A78: 2064 | B78: 1.890461869 | E78: =(1-s)*D78 ->  | F78: =s*D78 ->  | G78: =dep*C78 ->  | L78: =alpha1/K78 -> 
A79: 2065 | B79: =(1+n)*B78 -> 1.909366488 | D79: =A*(alpha1*C79^rho+alpha2*((1+g)^(A79-$A$14)*B79)^rho)^(1/rho) ->  | K79: =C79/D79 -> 
A80: 2066 | B80: 1.928460153 | C80: =C79+H79 ->  | H80: =F80-G80 ->  | I80: =(C80-C79)/C79 -> 
A81: 2067 | B81: 1.947744755 | J81: =(D81-D80)/D80 -> 
A82: 2068 | B82: 1.967222202
A83: 2069 | B83: 1.986894424
A84: 2070 | B84: 2.006763368
A85: 2071 | B85: 2.026831002
A86: 2072 | B86: 2.047099312
A87: 2073 | B87: 2.067570305
A88: 2074 | B88: 2.088246008
A89: 2075 | B89: 2.109128468
A90: 2076 | B90: 2.130219753
A91: 2077 | B91: 2.151521951
A92: 2078 | B92: 2.17303717
A93: 2079 | B93: 2.194767542
A94: 2080 | B94: 2.216715217
A95: 2081 | B95: 2.238882369
A96: 2082 | B96: 2.261271193
A97: 2083 | B97: 2.283883905
A98: 2084 | B98: 2.306722744
A99: 2085 | B99: 2.329789971
A100: 2086 | B100: 2.353087871
A101: 2087 | B101: 2.37661875
A102: 2088 | B102: 2.400384937
A103: 2089 | B103: 2.424388787
A104: 2090 | B104: 2.448632675
A105: 2091 | B105: 2.473119001
A106: 2092 | B106: 2.497850191
A107: 2093 | B107: 2.522828693
A108: 2094 | B108: 2.54805698
A109: 2095 | B109: 2.57353755
A110: 2096 | B110: 2.599272926
A111: 2097 | B111: =(1+n)*B110 -> 2.625265655 | D111: =A*(alpha1*C111^rho+alpha2*((1+g)^(A111-$A$14)*B111)^rho)^(1/rho) -> 
A112: 2098 | B112: 2.651518311
A113: 2099 | B113: 2.678033494
A114: 2100 | B114: 2.704813829
A115: 2101 | B115: 2.731861968 | C115: =C114+H114 ->  | H115: =F115-G115 ->  | J115: =(D115-D114)/D114 ->  | K115: =C115/D115 -> 
A116: 2102 | B116: 2.759180587 | C116: =C115+H115 ->  | H116: =F116-G116 ->  | J116: =(D116-D115)/D115 ->  | K116: =C116/D116 -> 
A117: 2103 | B117: 2.786772393 | C117: =C116+H116 ->  | H117: =F117-G117 ->  | J117: =(D117-D116)/D116 ->  | K117: =C117/D117 -> 
A118: 2104 | B118: 2.814640117 | C118: =C117+H117 ->  | H118: =F118-G118 ->  | J118: =(D118-D117)/D117 ->  | K118: =C118/D118 -> 
A119: 2105 | B119: 2.842786518
A120: 2106 | B120: 2.871214384
A121: 2107 | B121: 2.899926527
A122: 2108 | B122: 2.928925793
A123: 2109 | B123: 2.958215051
A124: 2110 | B124: 2.987797201
A125: 2111 | B125: 3.017675173
A126: 2112 | B126: 3.047851925
A127: 2113 | B127: 3.078330444
A128: 2114 | B128: 3.109113749
A129: 2115 | B129: 3.140204886
A130: 2116 | B130: 3.171606935
A131: 2117 | B131: 3.203323004
A132: 2118 | B132: 3.235356234
A133: 2119 | B133: 3.267709797
A134: 2120 | B134: 3.300386895
A135: 2121 | B135: 3.333390764
A136: 2122 | B136: 3.366724671
A137: 2123 | B137: 3.400391918
A138: 2124 | B138: 3.434395837
A139: 2125 | B139: 3.468739795
A140: 2126 | B140: 3.503427193
A141: 2127 | B141: 3.538461465
A142: 2128 | B142: 3.57384608 | E142: =(1-s)*D142 ->  | F142: =s*D142 ->  | G142: =dep*C142 ->  | L142: =alpha1/K142 -> 
A143: 2129 | B143: =(1+n)*B142 -> 3.609584541 | D143: =A*(alpha1*C143^rho+alpha2*((1+g)^(A143-$A$14)*B143)^rho)^(1/rho) -> 
A144: 2130 | B144: 3.645680386 | I144: =(C144-C143)/C143 -> 
A145: 2131 | B145: 3.68213719
A146: 2132 | B146: 3.718958562
A147: 2133 | B147: 3.756148148
A148: 2134 | B148: 3.793709629
A149: 2135 | B149: 3.831646725
A150: 2136 | B150: 3.869963193
A151: 2137 | B151: 3.908662824
A152: 2138 | B152: 3.947749453
A153: 2139 | B153: 3.987226947
A154: 2140 | B154: 4.027099217
A155: 2141 | B155: 4.067370209
A156: 2142 | B156: 4.108043911
A157: 2143 | B157: 4.14912435
A158: 2144 | B158: 4.190615594
A159: 2145 | B159: 4.23252175
A160: 2146 | B160: 4.274846967
A161: 2147 | B161: 4.317595437
A162: 2148 | B162: 4.360771391
A163: 2149 | B163: 4.404379105
A164: 2150 | B164: 4.448422896
A165: 2151 | B165: 4.492907125
A166: 2152 | B166: 4.537836196
A167: 2153 | B167: 4.583214558
A168: 2154 | B168: 4.629046704
A169: 2155 | B169: 4.675337171
A170: 2156 | B170: 4.722090543
A171: 2157 | B171: 4.769311448
A172: 2158 | B172: 4.817004562
A173: 2159 | B173: 4.865174608
A174: 2160 | B174: 4.913826354
A175: 2161 | B175: =(1+n)*B174 -> 4.962964618 | D175: =A*(alpha1*C175^rho+alpha2*((1+g)^(A175-$A$14)*B175)^rho)^(1/rho) -> 
A176: 2162 | B176: 5.012594264
A177: 2163 | B177: 5.062720206
A178: 2164 | B178: 5.113347409
A179: 2165 | B179: 5.164480883
A180: 2166 | B180: 5.216125691
A181: 2167 | B181: 5.268286948
A182: 2168 | B182: 5.320969818 | C182: =C181+H181 ->  | H182: =F182-G182 ->  | J182: =(D182-D181)/D181 ->  | K182: =C182/D182 -> 
A183: 2169 | B183: 5.374179516
A184: 2170 | B184: 5.427921311
A185: 2171 | B185: 5.482200524
A186: 2172 | B186: 5.53702253
A187: 2173 | B187: 5.592392755
A188: 2174 | B188: 5.648316682
A189: 2175 | B189: 5.704799849
A190: 2176 | B190: 5.761847848
A191: 2177 | B191: 5.819466326
A192: 2178 | B192: 5.877660989
A193: 2179 | B193: 5.936437599
A194: 2180 | B194: 5.995801975
A195: 2181 | B195: 6.055759995
A196: 2182 | B196: 6.116317595
A197: 2183 | B197: 6.177480771
A198: 2184 | B198: 6.239255579
A199: 2185 | B199: 6.301648135
A200: 2186 | B200: 6.364664616
A201: 2187 | B201: 6.428311262
A202: 2188 | B202: 6.492594375
... 12 more rows

Sheet Intro
G1: Capital.xlsm
G2: by
G3: Humberto Barreto
G4: hbarreto@depauw,edu
G5: http://www.depauw.edu/learn/econexcel/
A7: This Excel workbook explains key ideas in Piketty's Capital. --> | G7: www.amazon.com/Capital-Twenty-First-Century-Thomas-Piketty/dp/1491591617
A9: It is completely self-contained and all you have to do is read (scrolling down as needed), follow instructions (obey the Click and Change commands), and pay close attention.
A11: Software Requirements:
B12: You need Microsoft Excel, Windows version 2007 or greater to get full functionality from this file.
C13: The file can be opened with Mac Excel, but it uses Visual Basic code that may not be fully supported on a Mac.
B15: You must be sure to Enable Content or the buttons and code in this macro-enabled workbook will not work.
A17: Let's see if you are ready to go (click the X to close the window when you are finished watching the video):
B18: Click
C20: https://player.vimeo.com/video/238782395
A21: Three bad outcomes and fixes:
B22: 1) If the button above does not respond when you click it, please close the workbook and open it again, enabling macros.
C23: Search "enable macros" in Excel's Help for more information on how to do this.
B24: 2) If the video does not play, check your internet connection. You need to be able to watch the videos because they have explanations and instructions.
B25: 3) If you are connected to the internet, but get other errors (e.g., "Sorry. This video does not exist."), you will not be able to watch the video in a "floating window" above this Excel spreadsheet.
B26: As a workaround, click the URL under the button to watch the video in a browser. You can resize and move the Excel and browser windows on your screen to see the video and sheet at the same time.
A28: If you watched the video, you are ready to start.
B29: You now know that I created this Excel file to make Piketty's argument about inequality accessible to the smart, non-expert reader.
A31: As you proceed, the workbook will unfold, displaying new sheets, and I will ask you to click buttons and change things.
B32: You are free to take notes on the sheets or change cells as you desire.
B33: You can modify charts or create new ones -- there is nothing special about this workbook, nothing is password protected or otherwise blocked.
B34: You cannot really hurt anything -- if something does break, just close the workbook and re-open it. You can also Save As if you want to be extra careful and have an original copy available.
B35: If you know Visual Basic, go ahead and look at the code. It is freely available for you to inspect and alter as you wish.
A37: I welcome all feedback, positive and negative. Drop me an email and let me know what you think or if you have any questions or suggestions.
A38: I really hope this helps. | F38: hbarreto@depauw,edu
A39: Enjoy!
B41: Click

Sheet Def (hidden)
A1: Defining | B1: Let's start with the definition of capital, which is absolutely essential, and consider also exactly what income means.
A2: K and Y
B3: For Piketty, wealth and capital are the exact same thing (he should have said this in the first sentence instead of p. 47).
B4: Capital (K) is a stock ($ at a point in time) and income (Y) a flow ($ over a period of time, say a year).
B6: Capital includes ALL non-human assets that can be exchanged (bought and sold or given away, including inheritance)
C7: Capital includes all real estate, financial, and industrial assets and, if slavery is legal, the value of the slaves.
C8: Piketty does not like the phrase "human capital" because labor as an asset cannot be traded or passed on (since slavery is everywhere now illegal).
B10: Capital can be measured by directly valuing the asset or by computing the capitalized value of the income stream.
C11: Capital income ($/yr) = rate of return (%/yr) x capital ($) so if we divide both sides by the rate of return, we get: capital = capital income/rate of return.
C12: If you own a house that you rent out for $10,000 a year and the rate of return is 5% per year (after maintenance), then your capital (wealth) is $200,000 (that's $10,000/0.05).
B14: Click
B29: Unlike capital, income is a flow and it can come from labor (L) as a payment for work.
C30: They are a lot of different names for labor income, such as wages, salaries, tips, stipends, and so on.
B32: But, confusingly, capital can also produce a flow of payments: rents, interest, dividends, and other forms of unearned income.
C33: Remember that house that you rented out? It's $200,000 value is part of the capital stock, but that annual return of $10,000 is capital income.
B35: So income is all of the forms of payments received by owners of productive inputs, which we group into two types: labor income and capital (or non-labor) income.
C36: Total income = labor income + capital income
B38: Inequality can be measured by the share of output going to labor and capital owners (the functional distribution) or by how much each individual person gets (either as annual income or as wealth).
B40: We are often interested in individual income inequality, but the functional distribution gives us another view -- if K is large, then income inequality is high.
M41: This is a critical connection and we will return to it.
A43: Summary: | B43: So, before we move on, this is the takeaway:
C44: Capital (K) is wealth, a stock of all tradeable asset values at a point in time.
C45: Income (Y) is a flow of all payments received by owners of inputs during a period of time (usually a year).
B47: Click

Sheet Data (hidden)
A1: New Data | B1: Piketty's brute force compilation of numbers gives us a view we did not have before.
C2: He wrote Capital a few years ago and it was translated to English in 2014, from which it became a publishing sensation.
C3: But he had been working for years on this project, producing papers and working with others to create the data which enabled the inequality argument to move forward.
A5: Part I: | B5: Before we see what the data show, there is an important new variable to consider: b (beta). | AL5: Left here in case I need to edit
A6: K/Y = b | AL6: Not showing up correctly on other Excel versions so went with images
B7: While we can track K and Y separately over time, a really clever trick is to divide K by Y. This ratio is b.
B8: b removes the currency units so changes in prices over time and across countries do not matter.
B9: Think about it: US national income is roughly almost $20 trillion per year and the capital stock is $80T, so K/Y = 4 years of national ncome.
B10: This says that the entire country's stock of wealth can buy 4 years of national income.
B11: It sounds a little weird to say it that way, as years of income, but K/Y tells you how intensely capitalized an economy is and, as we will see, this offers a window into inequality.
B12: You can also express K/Y in percentage terms, so K/Y = 4 is equal to 400%. We would say that capital is 400% of national income.
B14: Below is a graph of the the UK's beta since 1870 and there is a table to the right with the data.
C15: You can control what is displayed in the chart by selecting the country.
B16: Change
C17: 4
E19: Change | F19: Set the chart to the UK's b, if needed,
F20: then --> | H20: Click | K20: https://player.vimeo.com/video/238959182
K21: Click the link above if the button does not work.
L22: Piketty, Capital, Table S4.5, Private Capital as a % of National of Income
L23: Year | M23: USA | N23: Germany | O23: France | P23: UK | Q23: Europe
L24: 1870 | M24: 4.427234739 | N24: 7.108170654 | O24: 7.188848975 | P24: 6.720365818 | Q24: 7.005795149
L25: 1880 | M25: 4.518448769 | N25: 6.933138717 | O25: 6.950377815 | P25: 6.756864975 | Q25: 6.880127169
L26: 1890 | M26: 5.052164366 | N26: 6.256642461 | O26: 6.950377815 | P26: 6.756864975 | Q26: 6.654628417
L27: 1900 | M27: 4.750351341 | N27: 6.48452567 | O27: 6.950377815 | P27: 6.756864975 | Q27: 6.730589487
L28: 1910 | M28: 4.746976883 | N28: 6.417698561 | O28: 6.711906655 | P28: 6.793364133 | Q28: 6.640989783
L29: 1920 | M29: 4.343660955 | N29: 3.546756829 | O29: 2.906721729 | P29: 2.877173073 | Q29: 3.110217211
L30: 1930 | M30: 5.366034848 | N30: 3.790194525 | O30: 3.842095955 | P30: 3.611882649 | Q30: 3.74805771
L31: 1940 | M31: 3.502799354 | N31: 2.868649604 | O31: 2.842095955 | P31: 2.611882649 | Q31: 2.774209403
L32: 1950 | M32: 3.84498149 | N32: 2.333842108 | O32: 2.777470181 | P32: 2.346592225 | Q32: 2.485968171
L33: 1960 | M33: 4.090936458 | N33: 2.972951196 | O33: 3.204438648 | P33: 2.838793301 | Q33: 3.005394382
L34: 1970 | M34: 4.001472511 | N34: 3.133395164 | O34: 3.631407115 | P34: 3.330994376 | Q34: 3.222440752
L35: 1980 | M35: 4.175080835 | N35: 3.527987611 | O35: 3.654935908 | P35: 3.976898285 | Q35: 3.713292524
L36: 1990 | M36: 4.189782335 | N36: 3.551165257 | O36: 3.678464701 | P36: 4.622802194 | Q36: 4.281187361
L37: 2000 | M37: 4.92051175 | N37: 3.8751677 | O37: 5.025311547 | P37: 4.924175234 | Q37: 4.990471246
L38: 2010 | M38: 4.307576938 | N38: 4.143063498 | O38: 6.053871254 | P38: 5.225548274 | Q38: 5.533745633
L39: Source: | M39: http://piketty.pse.ens.fr/en/capital21c2
B42: Notice how the UK had a high K/Y of almost 7 years of national income until 1910 and then it dropped rapidly during World War I.
B43: It was low, roughly 3 years of national income, from post-WWI to the 1960s.
B44: But since the 1960s, K/Y has been rising pretty steadily.
B46: So, with respect to b, the historical record for the UK shows that there are three parts:
B47: 1) K/Y was pretty high up to 1914, then 2) it dropped like a stone and stayed low during the WWI-Great Depression-WWII, and, finally, 3) K/Y has been rising ever since.
A49: Transition: | B49: Having covered K/Y, we are ready to discuss income inequality.
A52: Part II: | B52: In addition to detailed compilations of data on capital stocks and income flows, Piketty also collects data on income and wealth inequality.
A53: Top 10% | B53: He uses tax returns to get data on the very rich -- a substantial improvement on survey data (such as the Current Population Survey) which cannot capture the highest tail of the distribution.
B54: Piketty is not a fan of the Gini coefficient (see p. 266 of Capital), preferring instead a simpler percentile measure: the share going to the top-most percentage in the distribution.
B56: The chart below plots the share of income going to the Top 10% (or top decile) of the income distribution in the UK.
C57: It shows that, in 1900, the richest 10% got almost half of national income. This is a pretty unequal. | T57: Source: | U57: http://piketty.pse.ens.fr/en/capital21c2 | AC57: Not used in macro for chart, but left here to keep table intact
C58: Income equality (at least as measured by what the Top 10% get) improved over the 20th century and by the late 1970s, the Top 10% got just over a quarter of all income. | T58: Added #N/A to pretty up chart
C59: But since then, inequality has steadily risen. | T59: Piketty, Table S9.2, UK | Y59: Piketty, Table S8.1, France | AG59: Piketty, Table S8.2, USA
L60: 3 | N60: 1 | U60: Top 10% | V60: Top 1% | W60: Top 0,1% | Z60: Top 10% income share | AA60: Top 1% income share | AB60: Top 0,1% income share | AC60: Top 10% wage share | AD60: Top 1% wage share | AH60: Top 10% income share | AI60: Top 10%-5% income share | AJ60: Top 5%-1% income share | AK60: Top 1% income share | AL60: Top 0,1% income share | AM60: Top 10% income share (excl. capital gains) | AN60: Top 1% income share (excl. capital gains) | AO60: Top 0,1% income share (excl. capital gains) | AP60: Top 10% wage share | AQ60: Top 1% wage share
T61: 1900 | U61: 0.4707537234 | V61: 0.2189303347 | W61: 0.11075 | Y61: 1900 | Z61: 0.455 | AG61: 1900 | AH61: 0.405 | AM61: 0.4028005431
L62: Change | M62: Select combinations of countries and percentiles to display. | T62: 1901 | Y62: 1901 | AG62: 1901
T63: 1902 | Y63: 1902 | AG63: 1902
L64: Data are to the right. | T64: 1903 | Y64: 1903 | AG64: 1903
T65: 1904 | Y65: 1904 | AG65: 1904
L66: For more inequality data (more countries, more years, more variables), visit | T66: 1905 | Y66: 1905 | Z66: 0.455 | AG66: 1905
L67: http://wid.world/ | T67: 1906 | Y67: 1906 | AG67: 1906
T68: 1907 | Y68: 1907 | AG68: 1907
T69: 1908 | U69: 0.462593617 | V69: 0.2174803347 | W69: 0.1093 | Y69: 1908 | Z69: 0.455 | AG69: 1908
T70: 1909 | U70: 0.4676585106 | V70: 0.2183803347 | W70: 0.1102 | Y70: 1909 | Z70: 0.46 | AG70: 1909
T71: 1910 | U71: 0.4710351064 | V71: 0.2189803347 | W71: 0.1108 | Y71: 1910 | Z71: 0.465 | AA71: 0.205 | AB71: 0.095 | AC71: 0.2641016564 | AD71: 0.05903102533 | AG71: 1910 | AH71: 0.405785062 | AI71: 0.09886691094 | AJ71: 0.1292181511 | AK71: 0.1777 | AL71: 0.0892 | AM71: 0.4035813416 | AN71: 0.1777 | AO71: 0.0892 | AP71: 0.2720056942 | AQ71: 0.0823051606
C72: If we adjust the y axis of the chart when plotting the UK's Top 10% share, we can make the visual message louder -- and connect it to beta! | T72: 1911 | U72: 0.4715978723 | V72: 0.2190803347 | W72: 0.1109 | Y72: 1911 | Z72: 0.4675 | AA72: 0.2075 | AB72: 0.0975 | AC72: 0.2655215578 | AD72: 0.05975091589 | AG72: 1911 | AH72: 0.407954425 | AI72: 0.09939546223 | AJ72: 0.1299089628 | AK72: 0.17865 | AL72: 0.0877 | AM72: 0.4057389233 | AN72: 0.17865 | AO72: 0.0877 | AP72: 0.2733529391 | AQ72: 0.08274517131
D73: The chart below plots the same data as the one above (when set to UK Top 10%), but the min and max of the y axis have been set to 0.25 and 0.5, respectively. | T73: 1912 | U73: 0.4715978723 | V73: 0.2190803347 | W73: 0.1109 | Y73: 1912 | Z73: 0.4631041667 | AA73: 0.207875 | AB73: 0.097225 | AC73: 0.2630248979 | AD73: 0.05985889947 | AG73: 1912 | AH73: 0.4113226466 | AI73: 0.1002161077 | AJ73: 0.1309815389 | AK73: 0.180125 | AL73: 0.08685 | AM73: 0.4090888529 | AN73: 0.180125 | AO73: 0.08685 | AP73: 0.275444714 | AQ73: 0.08342834582
T74: 1913 | U74: 0.4800393617 | V74: 0.2205803347 | W74: 0.1124 | Y74: 1913 | Z74: 0.47 | AA74: 0.21 | AB74: 0.1 | AC74: 0.2669414592 | AD74: 0.06047080644 | AG74: 1913 | AH74: 0.410123788 | AI74: 0.09992401353 | AJ74: 0.1305997745 | AK74: 0.1796 | AL74: 0.0862 | AM74: 0.4078965051 | AN74: 0.1796 | AO74: 0.0862 | AP74: 0.2747001839 | AQ74: 0.08318518201
T75: 1914 | U75: 0.4564031915 | V75: 0.2147924686 | W75: 0.1071 | Y75: 1914 | Z75: 0.4587083333 | AA75: 0.20825 | AB75: 0.09695 | AC75: 0.2605282379 | AD75: 0.05796688305 | AG75: 1914 | AH75: 0.4146908681 | AI75: 0.1010367531 | AJ75: 0.132054115 | AK75: 0.1816 | AL75: 0.086 | AM75: 0.4124387824 | AN75: 0.1816 | AO75: 0.086 | AP75: 0.2775364889 | AQ75: 0.08411152034
T76: 1915 | U76: 0.4597797872 | V76: 0.2154476987 | W76: 0.1077 | Y76: 1915 | Z76: 0.3967166667 | AA76: 0.1831 | AB76: 0.079 | AC76: 0.2253194168 | AD76: 0.04772478409 | AG76: 1915 | AH76: 0.401446336 | AI76: 0.09780980834 | AJ76: 0.1278365276 | AK76: 0.1758 | AL76: 0.0922 | AM76: 0.3992661781 | AN76: 0.1758 | AO76: 0.0922 | AP76: 0.2693112045 | AQ76: 0.08142513919
T77: 1916 | U77: 0.4485244681 | V77: 0.2121715481 | W77: 0.1047 | Y77: 1916 | Z77: 0.4474166667 | AA77: 0.2065 | AB77: 0.0939 | AC77: 0.2541150167 | AD77: 0.04846295967 | AG77: 1916 | AH77: 0.4409515784 | AI77: 0.1074350056 | AJ77: 0.1404165727 | AK77: 0.1931 | AL77: 0.1051 | AM77: 0.4385568771 | AN77: 0.1857 | AO77: 0.0987 | AP77: 0.2938452423 | AQ77: 0.08601051392
L78: Now we see three parts: | T78: 1917 | U78: 0.397312766 | V78: 0.1989577406 | W78: 0.0926 | Y78: 1917 | Z78: 0.4352833333 | AA78: 0.2009 | AB78: 0.0889 | AC78: 0.247223762 | AD78: 0.04585040483 | AG78: 1917 | AH78: 0.4051 | AI78: 0.0987 | AJ78: 0.129 | AK78: 0.1774 | AL78: 0.084 | AM78: 0.4029 | AN78: 0.176 | AO78: 0.0836 | AP78: 0.2715802485 | AQ78: 0.08151777302
L79: 1) High inequality in the early years of the 20th century. | T79: 1918 | U79: 0.3703 | V79: 0.1924 | W79: 0.0868 | Y79: 1918 | Z79: 0.3889166667 | AA79: 0.1795 | AB79: 0.0767 | AC79: 0.2208893245 | AD79: 0.04768814169 | AG79: 1918 | AH79: 0.4011 | AI79: 0.1062 | AJ79: 0.1353 | AK79: 0.1596 | AL79: 0.0672 | AM79: 0.399 | AN79: 0.1588 | AO79: 0.0674 | AP79: 0.2691449966 | AQ79: 0.07355126338
L80: 2) Falling and low inequality in the middle of the century. | T80: 1919 | U80: 0.3873 | V80: 0.1959 | W80: 0.0898 | Y80: 1919 | Z80: 0.4225 | AA80: 0.195 | AB80: 0.0826 | AC80: 0.21464865 | AD80: 0.05615146312 | AG80: 1919 | AH80: 0.4032 | AI80: 0.1015 | AJ80: 0.1376 | AK80: 0.1641 | AL80: 0.0663 | AM80: 0.3948 | AN80: 0.1587 | AO80: 0.0645 | AP80: 0.2665224177 | AQ80: 0.07350494647
L81: 3) Rising inequality at the end. | T81: 1920 | U81: 0.40755 | V81: 0.185525523 | W81: 0.0803 | Y81: 1920 | Z81: 0.3959 | AA81: 0.1795 | AB81: 0.0763 | AC81: 0.2208893245 | AD81: 0.05738194892 | AG81: 1920 | AH81: 0.3901 | AI81: 0.1069 | AJ81: 0.1349 | AK81: 0.1483 | AL81: 0.0536 | AM81: 0.381 | AN81: 0.1446 | AO81: 0.0537 | AP81: 0.2579053727 | AQ81: 0.06697426124
T82: 1921 | U82: 0.40805 | V82: 0.1860715481 | W82: 0.0808 | Y82: 1921 | Z82: 0.397 | AA82: 0.1732 | AB82: 0.0723 | AC82: 0.2149069191 | AD82: 0.05227398898 | AG82: 1921 | AH82: 0.4318 | AI82: 0.1238 | AJ82: 0.1516 | AK82: 0.1564 | AL82: 0.056 | AM82: 0.4286 | AN82: 0.1547 | AO82: 0.056 | AP82: 0.2876279337 | AQ82: 0.07165226981
L83: Look familiar? | T83: 1922 | U83: 0.41795 | V83: 0.1968828452 | W83: 0.0907 | Y83: 1922 | Z83: 0.4154 | AA83: 0.1787 | AB83: 0.0726 | AC83: 0.2346696538 | AD83: 0.05910821517 | AG83: 1922 | AH83: 0.4372 | AI83: 0.1178 | AJ83: 0.1488 | AK83: 0.1706 | AL83: 0.0664 | AM83: 0.4295 | AN83: 0.1629 | AO83: 0.0617 | AP83: 0.2881899149 | AQ83: 0.07545025696
T84: 1923 | U84: 0.42015 | V84: 0.1992853556 | W84: 0.0929 | Y84: 1923 | Z84: 0.4354 | AA84: 0.1891 | AB84: 0.0761 | AC84: 0.2450258748 | AD84: 0.0647577247 | AG84: 1923 | AH84: 0.4146 | AI84: 0.1168 | AJ84: 0.1414 | AK84: 0.1564 | AL84: 0.0591 | AM84: 0.4059 | AN84: 0.1499 | AO84: 0.055 | AP84: 0.2734535191 | AQ84: 0.06942905782
T85: 1924 | U85: 0.41775 | V85: 0.1966644351 | W85: 0.0905 | Y85: 1924 | Z85: 0.4214 | AA85: 0.1796 | AB85: 0.0705 | AC85: 0.2401386205 | AD85: 0.06131319986 | AG85: 1924 | AH85: 0.4441 | AI85: 0.123 | AJ85: 0.1469 | AK85: 0.1742 | AL85: 0.0679 | AM85: 0.4326 | AN85: 0.1632 | AO85: 0.0614 | AP85: 0.2701256279 | AQ85: 0.07558920771
D86: Lesson: | T86: 1925 | U86: 0.41515 | V86: 0.1938251046 | W86: 0.0879 | Y86: 1925 | Z86: 0.4407 | AA86: 0.1816 | AB86: 0.0707 | AC86: 0.2534190558 | AD86: 0.06847852523 | AG86: 1925 | AH86: 0.4635 | AI86: 0.1134 | AJ86: 0.1477 | AK86: 0.2024 | AL86: 0.0852 | AM86: 0.4417 | AN86: 0.176 | AO86: 0.0675 | AP86: 0.2758078822 | AQ86: 0.08151777302
D87: This direct measure of income inequality tracks the K/Y ratio story pretty well. | T87: 1926 | U87: 0.41395 | V87: 0.1925146444 | W87: 0.0867 | Y87: 1926 | Z87: 0.4206 | AA87: 0.1782 | AB87: 0.0698 | AC87: 0.240940396 | AD87: 0.06799886805 | AG87: 1926 | AH87: 0.4571 | AI87: 0.111 | AJ87: 0.147 | AK87: 0.1991 | AL87: 0.0846 | AM87: 0.4407 | AN87: 0.1801 | AO87: 0.0707 | AP87: 0.2751834587 | AQ87: 0.0834167666
D88: High, then falling, but more recently rising again. | T88: 1927 | U88: 0.41215 | V88: 0.190548954 | W88: 0.0849 | Y88: 1927 | Z88: 0.4295 | AA88: 0.1745 | AB88: 0.0687 | AC88: 0.2654613554 | AD88: 0.07391545767 | AG88: 1927 | AH88: 0.4667 | AI88: 0.1098 | AJ88: 0.1466 | AK88: 0.2103 | AL88: 0.0925 | AM88: 0.4467 | AN88: 0.1868 | AO88: 0.0747 | AP88: 0.27893 | AQ88: 0.08652
T89: 1928 | U89: 0.41265 | V89: 0.1910949791 | W89: 0.0854 | Y89: 1928 | Z89: 0.4275 | AA89: 0.1727 | AB89: 0.0677 | AC89: 0.2657944 | AD89: 0.07321767974 | AG89: 1928 | AH89: 0.4929 | AI89: 0.1073 | AJ89: 0.1462 | AK89: 0.2394 | AL89: 0.1154 | AM89: 0.4609 | AN89: 0.196 | AO89: 0.0819 | AP89: 0.29109 | AQ89: 0.08866
A90: Transition: | B90: Having explored the historical record of K/Y (Part I) and the Top 10% (Part II), we are poised to make a critical connection. | T90: 1929 | U90: 0.41055 | V90: 0.1888016736 | W90: 0.0833 | Y90: 1929 | Z90: 0.4159 | AA90: 0.1615 | AB90: 0.0625 | AC90: 0.264583181 | AD90: 0.07108607953 | AG90: 1929 | AH90: 0.4671 | AI90: 0.1023 | AJ90: 0.1413 | AK90: 0.2235 | AL90: 0.1091 | AM90: 0.4376 | AN90: 0.1842 | AO90: 0.0762 | AP90: 0.29244 | AQ90: 0.08671
T91: 1930 | U91: 0.40535 | V91: 0.1831230126 | W91: 0.0781 | Y91: 1930 | Z91: 0.4108 | AA91: 0.1531 | AB91: 0.0579 | AC91: 0.2678723418 | AD91: 0.07109054151 | AG91: 1930 | AH91: 0.4387 | AI91: 0.1181 | AJ91: 0.1484 | AK91: 0.1722 | AL91: 0.0707 | AM91: 0.4307 | AN91: 0.1642 | AO91: 0.064 | AP91: 0.28628 | AQ91: 0.08541
A92: Part III: | B92: You may have noticed that the U-shape in the chart above of the UK's Top 10% income share looks similar to that of the UK's K/Y ratio. | T92: 1931 | U92: 0.39895 | V92: 0.1761338912 | W92: 0.0717 | Y92: 1931 | Z92: 0.4112 | AA92: 0.1463 | AB92: 0.0537 | AC92: 0.2717488179 | AD92: 0.07020894007 | AG92: 1931 | AH92: 0.4454 | AI92: 0.1331 | AJ92: 0.1573 | AK92: 0.155 | AL92: 0.0589 | AM92: 0.444 | AN92: 0.1527 | AO92: 0.0568 | AP92: 0.29339 | AQ92: 0.08468
A93: b<->Top 10% | B93: Piketty never draws a double-Y chart like the one below, but it clearly connects K/Y and income inequality. | T93: 1932 | U93: 0.39595 | V93: 0.1728577406 | W93: 0.0687 | Y93: 1932 | Z93: 0.4344 | AA93: 0.148 | AB93: 0.0522 | AC93: 0.2813191739 | AD93: 0.07107068004 | AG93: 1932 | AH93: 0.4637 | AI93: 0.137 | AJ93: 0.1711 | AK93: 0.1556 | AL93: 0.0597 | AM93: 0.463 | AN93: 0.1548 | AO93: 0.059 | AP93: 0.3028 | AQ93: 0.0829
T94: 1933 | U94: 0.39475 | V94: 0.1715472803 | W94: 0.0675 | Y94: 1933 | Z94: 0.4487 | AA94: 0.1495 | AB94: 0.052 | AC94: 0.2736997237 | AD94: 0.06820899322 | AG94: 1933 | AH94: 0.456 | AI94: 0.1241 | AJ94: 0.1673 | AK94: 0.1646 | AL94: 0.0661 | AM94: 0.4503 | AN94: 0.1577 | AO94: 0.0605 | AP94: 0.30075 | AQ94: 0.08308
B95: Notice how high K/Y at the beginning and end of the 20the century is associated with high income inequality. | T95: 1934 | U95: 0.39505 | V95: 0.1718748954 | W95: 0.0678 | Y95: 1934 | Z95: 0.4601 | AA95: 0.1528 | AB95: 0.0531 | AC95: 0.2683584999 | AD95: 0.06710897968 | AG95: 1934 | AH95: 0.4578 | AI95: 0.1207 | AJ95: 0.1731 | AK95: 0.164 | AL95: 0.0613 | AM95: 0.4516 | AN95: 0.1587 | AO95: 0.0582 | AP95: 0.29767 | AQ95: 0.08307
T96: 1935 | U96: 0.39685 | V96: 0.1738405858 | W96: 0.0696 | Y96: 1935 | Z96: 0.4661 | AA96: 0.154 | AB96: 0.0531 | AC96: 0.2661758819 | AD96: 0.06709040937 | AG96: 1935 | AH96: 0.4449 | AI96: 0.1221 | AJ96: 0.156 | AK96: 0.1668 | AL96: 0.0639 | AM96: 0.4339 | AN96: 0.1563 | AO96: 0.058 | AP96: 0.3031 | AQ96: 0.08401
B97: This is no coincidence. | T97: 1936 | U97: 0.39755 | V97: 0.1746050209 | W97: 0.0703 | Y97: 1936 | Z97: 0.441 | AA97: 0.1474 | AB97: 0.0517 | AC97: 0.2414527883 | AD97: 0.06107342815 | AG97: 1936 | AH97: 0.4659 | AI97: 0.1195 | AJ97: 0.1535 | AK97: 0.1929 | AL97: 0.0757 | AM97: 0.4477 | AN97: 0.1764 | AO97: 0.0669 | AP97: 0.29695 | AQ97: 0.08597
T98: 1937 | U98: 0.3837 | V98: 0.1698 | W98: 0.0659 | Y98: 1937 | Z98: 0.429 | AA98: 0.1446 | AB98: 0.0524 | AC98: 0.2368395983 | AD98: 0.0593023416 | AG98: 1937 | AH98: 0.4423 | AI98: 0.1196 | AJ98: 0.1512 | AK98: 0.1715 | AL98: 0.0649 | AM98: 0.4335 | AN98: 0.1645 | AO98: 0.0616 | AP98: 0.3006 | AQ98: 0.08407
T99: 1938 | U99: 0.3833 | V99: 0.1694490446 | W99: 0.0657 | Y99: 1938 | Z99: 0.4252 | AA99: 0.1427 | AB99: 0.0505 | AC99: 0.2450368259 | AD99: 0.06035915091 | AG99: 1938 | AH99: 0.4407 | AI99: 0.1273 | AJ99: 0.1559 | AK99: 0.1575 | AL99: 0.0588 | AM99: 0.43 | AN99: 0.1473 | AO99: 0.0516 | AP99: 0.29834 | AQ99: 0.08127
T100: 1939 | U100: 0.3789 | V100: 0.165588535 | W100: 0.0635 | Y100: 1939 | Z100: 0.3824 | AA100: 0.133 | AB100: 0.0499 | AC100: 0.2303717832 | AD100: 0.05674675705 | AG100: 1939 | AH100: 0.4552 | AI100: 0.1324 | AJ100: 0.161 | AK100: 0.1618 | AL100: 0.0587 | AM100: 0.4457 | AN100: 0.1539 | AO100: 0.0545 | AP100: 0.30645 | AQ100: 0.08197
T101: 1940 | U101: 0.3653 | V101: 0.153656051 | W101: 0.0567 | Y101: 1940 | Z101: 0.3911 | AA101: 0.1335 | AB101: 0.049 | AC101: 0.2253854718 | AD101: 0.05351849464 | AG101: 1940 | AH101: 0.4529 | AI101: 0.1307 | AJ101: 0.1574 | AK101: 0.1648 | AL101: 0.0601 | AM101: 0.4443 | AN101: 0.1573 | AO101: 0.0557 | AP101: 0.30853 | AQ101: 0.08369
T102: 1941 | U102: 0.3519 | V102: 0.1418990446 | W102: 0.05 | Y102: 1941 | Z102: 0.387 | AA102: 0.1288 | AB102: 0.0427 | AC102: 0.223022699 | AD102: 0.05093648025 | AG102: 1941 | AH102: 0.4193 | AI102: 0.1194 | AJ102: 0.142 | AK102: 0.1579 | AL102: 0.0581 | AM102: 0.4102 | AN102: 0.1501 | AO102: 0.0529 | AP102: 0.29334 | AQ102: 0.08111
T103: 1942 | U103: 0.3407 | V103: 0.132072293 | W103: 0.0444 | Y103: 1942 | Z103: 0.3504 | AA103: 0.1153 | AB103: 0.0364 | AC103: 0.2219306298 | AD103: 0.04866747428 | AG103: 1942 | AH103: 0.3613 | AI103: 0.1033 | AJ103: 0.1237 | AK103: 0.1343 | AL103: 0.0481 | AM103: 0.3549 | AN103: 0.1291 | AO103: 0.0448 | AP103: 0.2708 | AQ103: 0.07212
T104: 1943 | U104: 0.3365 | V104: 0.1283872611 | W104: 0.0423 | Y104: 1943 | Z104: 0.3226 | AA104: 0.1013 | AB104: 0.0301 | AC104: 0.2259098778 | AD104: 0.04664766992 | AG104: 1943 | AH104: 0.3369 | AI104: 0.0961 | AJ104: 0.1177 | AK104: 0.1231 | AL104: 0.0426 | AM104: 0.3267 | AN104: 0.1148 | AO104: 0.0378 | AP104: 0.25879 | AQ104: 0.06424
T105: 1944 | U105: 0.3345 | V105: 0.1266324841 | W105: 0.0413 | Y105: 1944 | Z105: 0.2942 | AA105: 0.0837 | AB105: 0.0232 | AC105: 0.2295433541 | AD105: 0.05154269272 | AG105: 1944 | AH105: 0.3251 | AI105: 0.0974 | AJ105: 0.1149 | AK105: 0.1128 | AL105: 0.0376 | AM105: 0.3155 | AN105: 0.1054 | AO105: 0.0333 | AP105: 0.24609 | AQ105: 0.05564
T106: 1945 | U106: 0.3365 | V106: 0.1283872611 | W106: 0.0423 | Y106: 1945 | Z106: 0.297 | AA106: 0.0754 | AB106: 0.0196 | AC106: 0.2411569551 | AD106: 0.05940343452 | AG106: 1945 | AH106: 0.3442 | AI106: 0.0963 | AJ106: 0.1227 | AK106: 0.1252 | AL106: 0.0416 | AM106: 0.3264 | AN106: 0.1107 | AO106: 0.0332 | AP106: 0.24045 | AQ106: 0.05726
T107: 1946 | U107: 0.3415 | V107: 0.1327742038 | W107: 0.0448 | Y107: 1946 | Z107: 0.3287 | AA107: 0.0922 | AB107: 0.0261 | AC107: 0.2694114326 | AD107: 0.06573185668 | AG107: 1946 | AH107: 0.367 | AI107: 0.0993 | AJ107: 0.1349 | AK107: 0.1328 | AL107: 0.0439 | AM107: 0.3462 | AN107: 0.1176 | AO107: 0.0343 | AP107: 0.25104 | AQ107: 0.06398
K108: 3 | T108: 1947 | U108: 0.3339 | V108: 0.126106051 | W108: 0.041 | Y108: 1947 | Z108: 0.332 | AA108: 0.0922 | AB108: 0.0259 | AC108: 0.2568602059 | AD108: 0.06828087534 | AG108: 1947 | AH108: 0.3435 | AI108: 0.0967 | AJ108: 0.1272 | AK108: 0.1196 | AL108: 0.0392 | AM108: 0.3302 | AN108: 0.1095 | AO108: 0.0324 | AP108: 0.24969 | AQ108: 0.06274
T109: 1948 | U109: 0.3291 | V109: 0.121894586 | W109: 0.0386 | Y109: 1948 | Z109: 0.3235 | AA109: 0.0875 | AB109: 0.0243 | AC109: 0.2633264009 | AD109: 0.06910325845 | AG109: 1948 | AH109: 0.3501 | AI109: 0.0995 | AJ109: 0.1282 | AK109: 0.1224 | AL109: 0.0406 | AM109: 0.3372 | AN109: 0.1127 | AO109: 0.0344 | AP109: 0.25033 | AQ109: 0.06209
T110: 1949 | U110: 0.3225 | V110: 0.1147 | W110: 0.0345 | Y110: 1949 | Z110: 0.322 | AA110: 0.0901 | AB110: 0.0261 | AC110: 0.2443089792 | AD110: 0.070829894 | AG110: 1949 | AH110: 0.3475 | AI110: 0.1024 | AJ110: 0.1278 | AK110: 0.1173 | AL110: 0.0383 | AM110: 0.3376 | AN110: 0.1095 | AO110: 0.0334 | AP110: 0.25003 | AQ110: 0.06119
T111: 1950 | Y111: 1950 | Z111: 0.3197 | AA111: 0.0898 | AB111: 0.026 | AC111: 0.2697925959 | AD111: 0.06992564156 | AG111: 1950 | AH111: 0.3556 | AI111: 0.1003 | AJ111: 0.1271 | AK111: 0.1282 | AL111: 0.0439 | AM111: 0.3387 | AN111: 0.1136 | AO111: 0.0353 | AP111: 0.25184 | AQ111: 0.06235
K112: Change | L112: Select the countries above to see how well the K/Y ratio (on the left y axis) | T112: 1951 | U112: 0.3167 | V112: 0.1089 | W112: 0.0321 | Y112: 1951 | Z112: 0.3293 | AA112: 0.09 | AB112: 0.0255 | AC112: 0.2682490133 | AD112: 0.06895597666 | AG112: 1951 | AH112: 0.3422 | AI112: 0.1002 | AJ112: 0.1241 | AK112: 0.1179 | AL112: 0.0389 | AM112: 0.3282 | AN112: 0.1052 | AO112: 0.0312 | AP112: 0.24706 | AQ112: 0.0597
L113: matches up to the Top 10% share of income (on the right y axis). | T113: 1952 | U113: 0.3098 | V113: 0.102 | W113: 0.0295 | Y113: 1952 | Z113: 0.3319 | AA113: 0.0916 | AB113: 0.0253 | AC113: 0.2668814468 | AD113: 0.07033828417 | AG113: 1952 | AH113: 0.3321 | AI113: 0.1014 | AJ113: 0.1228 | AK113: 0.1079 | AL113: 0.0343 | AM113: 0.3207 | AN113: 0.0976 | AO113: 0.0276 | AP113: 0.24425 | AQ113: 0.05742
T114: 1953 | U114: 0.305 | V114: 0.0972 | W114: 0.0277 | Y114: 1953 | Z114: 0.3289 | AA114: 0.09 | AB114: 0.0248 | AC114: 0.2487789144 | AD114: 0.06712431199 | AG114: 1953 | AH114: 0.3231 | AI114: 0.103 | AJ114: 0.1211 | AK114: 0.099 | AL114: 0.0306 | AM114: 0.3138 | AN114: 0.0908 | AO114: 0.0251 | AP114: 0.24279 | AQ114: 0.05676
B115: Piketty knows that capital is much more unequally distributed than income so | T115: 1954 | U115: 0.3063 | V115: 0.0967 | W115: 0.0272 | Y115: 1954 | Z115: 0.3353 | AA115: 0.0914 | AB115: 0.0245 | AC115: 0.2548663648 | AD115: 0.07065847006 | AG115: 1954 | AH115: 0.3364 | AI115: 0.1034 | AJ115: 0.1253 | AK115: 0.1077 | AL115: 0.0349 | AM115: 0.3212 | AN115: 0.0939 | AO115: 0.0257 | AP115: 0.24133 | AQ115: 0.0561
B116: economies with high K/Y ratios are likely to also exhibit high income inequality. | T116: 1955 | U116: 0.3026 | V116: 0.093 | W116: 0.0265 | Y116: 1955 | Z116: 0.3442 | AA116: 0.0933 | AB116: 0.0248 | AC116: 0.2574417949 | AD116: 0.07288442963 | AG116: 1955 | AH116: 0.3394 | AI116: 0.1034 | AJ116: 0.1254 | AK116: 0.1106 | AL116: 0.0371 | AM116: 0.3177 | AN116: 0.0918 | AO116: 0.0249 | AP116: 0.24332 | AQ116: 0.05583
T117: 1956 | U117: 0.2971 | V117: 0.0875 | W117: 0.0242 | Y117: 1956 | Z117: 0.3436 | AA117: 0.0937 | AB117: 0.0246 | AC117: 0.2539613018 | AD117: 0.07188911507 | AG117: 1956 | AH117: 0.3346 | AI117: 0.1033 | AJ117: 0.1246 | AK117: 0.1067 | AL117: 0.0349 | AM117: 0.3181 | AN117: 0.0909 | AO117: 0.0238 | AP117: 0.24531 | AQ117: 0.05556
B118: The claim that high K/Y is associated with high income inequality makes sense because owners of capital get unearned income in addition to labor income. | T118: 1957 | U118: 0.2966 | V118: 0.087 | W118: 0.0237 | Y118: 1957 | Z118: 0.3474 | AA118: 0.0937 | AB118: 0.0244 | AC118: 0.2601943861 | AD118: 0.07652038071 | AG118: 1957 | AH118: 0.3299 | AI118: 0.1039 | AJ118: 0.1244 | AK118: 0.1016 | AL118: 0.0318 | AM118: 0.3169 | AN118: 0.0898 | AO118: 0.0236 | AP118: 0.245995 | AQ118: 0.054755
B119: Many other factors, however, affect income inequality and the K/Y and Top 10% data for USA and France don't show the connection as clearly. | T119: 1958 | U119: 0.2972 | V119: 0.0876 | W119: 0.0238 | Y119: 1958 | Z119: 0.3405 | AA119: 0.0901 | AB119: 0.0234 | AC119: 0.2747366994 | AD119: 0.0831594673 | AG119: 1958 | AH119: 0.3356 | AI119: 0.1063 | AJ119: 0.1272 | AK119: 0.1021 | AL119: 0.0322 | AM119: 0.3211 | AN119: 0.0883 | AO119: 0.0229 | AP119: 0.24668 | AQ119: 0.05395
T120: 1959 | U120: 0.2996 | V120: 0.086 | W120: 0.023 | Y120: 1959 | Z120: 0.3588 | AA120: 0.0946 | AB120: 0.0237 | AC120: 0.267821119 | AD120: 0.08207823357 | AG120: 1959 | AH120: 0.34 | AI120: 0.1061 | AJ120: 0.1274 | AK120: 0.1065 | AL120: 0.0345 | AM120: 0.3203 | AN120: 0.0875 | AO120: 0.0219 | AP120: 0.249465 | AQ120: 0.05328
B121: Here's the point: a lot of things affect how income is distributed: politics (tax brackets and deductions), CEO pay, where we are in the business cycle, the stock market's performance, and on and on. | T121: 1960 | U121: 0.3023 | V121: 0.0887 | W121: 0.0245 | Y121: 1960 | Z121: 0.3611 | AA121: 0.0971 | AB121: 0.0245 | AC121: 0.2640420565 | AD121: 0.0828874831 | AG121: 1960 | AH121: 0.3348 | AI121: 0.1091 | AJ121: 0.1254 | AK121: 0.1003 | AL121: 0.0325 | AM121: 0.3166 | AN121: 0.0836 | AO121: 0.021 | AP121: 0.25225 | AQ121: 0.05261
B122: We do not have an economic theory that directly explains the distribution of income. There are too many contributing factors. | T122: 1961 | Y122: 1961 | Z122: 0.3682 | AA122: 0.0988 | AB122: 0.0248 | AC122: 0.2740518962 | AD122: 0.07944374015 | AG122: 1961 | AH122: 0.3425 | AI122: 0.1075 | AJ122: 0.1286 | AK122: 0.1064 | AL122: 0.0365 | AM122: 0.319 | AN122: 0.0834 | AO122: 0.0205 | AP122: 0.25212 | AQ122: 0.05197
T123: 1962 | U123: 0.2937 | V123: 0.0843 | W123: 0.0229 | Y123: 1962 | Z123: 0.3588 | AA123: 0.0946 | AB123: 0.0234 | AC123: 0.2737905476 | AD123: 0.07710309756 | AG123: 1962 | AH123: 0.337 | AI123: 0.1089 | AJ123: 0.1286 | AK123: 0.0995 | AL123: 0.0319 | AM123: 0.3204 | AN123: 0.0827 | AO123: 0.0198 | AP123: 0.25224 | AQ123: 0.05156
A124: Key Point --> | B124: But we do have a model that explains the K/Y ratio. | T124: 1963 | U124: 0.2994 | V124: 0.0849 | W124: 0.0223 | Y124: 1963 | Z124: 0.3641 | AA124: 0.0943 | AB124: 0.0229 | AC124: 0.272354025 | AD124: 0.07621599665 | AG124: 1963 | AH124: 0.3378 | AI124: 0.1094 | AJ124: 0.1292 | AK124: 0.0992 | AL124: 0.0315 | AM124: 0.3201 | AN124: 0.0816 | AO124: 0.0196 | AP124: 0.25188 | AQ124: 0.05138
B125: And we know that when K/Y is high, we are likely to see high income inequality. | T125: 1964 | U125: 0.2991 | V125: 0.0848 | W125: 0.0226 | Y125: 1964 | Z125: 0.3684 | AA125: 0.0956 | AB125: 0.023 | AC125: 0.2802941907 | AD125: 0.07710954632 | AG125: 1964 | AH125: 0.3442 | AI125: 0.1092 | AJ125: 0.1302 | AK125: 0.1048 | AL125: 0.0337 | AM125: 0.3164 | AN125: 0.0802 | AO125: 0.0197 | AP125: 0.25152 | AQ125: 0.0512
T126: 1965 | U126: 0.2988 | V126: 0.0855 | W126: 0.0228 | Y126: 1965 | Z126: 0.3715 | AA126: 0.0958 | AB126: 0.023 | AC126: 0.2817737626 | AD126: 0.07942777959 | AG126: 1965 | AH126: 0.3478 | AI126: 0.109 | AJ126: 0.1299 | AK126: 0.1089 | AL126: 0.0366 | AM126: 0.3152 | AN126: 0.0807 | AO126: 0.0204 | AP126: 0.25248 | AQ126: 0.05138
B127: In fact, Piketty even has a name for societies with high K/Y: | T127: 1966 | U127: 0.2894 | V127: 0.0792 | W127: 0.0204 | Y127: 1966 | Z127: 0.3646 | AA127: 0.0936 | AB127: 0.0226 | AC127: 0.283871327 | AD127: 0.08222567008 | AG127: 1966 | AH127: 0.3367 | AI127: 0.1075 | AJ127: 0.1274 | AK127: 0.1018 | AL127: 0.0339 | AM127: 0.3198 | AN127: 0.0837 | AO127: 0.0215 | AP127: 0.25344 | AQ127: 0.05156
B128: PATRIMONIAL CAPITALISM | T128: 1967 | U128: 0.2878 | V128: 0.0769 | W128: 0.0191 | Y128: 1967 | Z128: 0.3621 | AA128: 0.0936 | AB128: 0.0229 | AC128: 0.2838769137 | AD128: 0.08020225225 | AG128: 1967 | AH128: 0.3444 | AI128: 0.1074 | AJ128: 0.1296 | AK128: 0.1074 | AL128: 0.0368 | AM128: 0.3205 | AN128: 0.0843 | AO128: 0.0216 | AP128: 0.25773 | AQ128: 0.05335
T129: 1968 | U129: 0.2855 | V129: 0.0754 | W129: 0.0187 | Y129: 1968 | Z129: 0.348 | AA129: 0.0877 | AB129: 0.0215 | AC129: 0.2793922437 | AD129: 0.07947945119 | AG129: 1968 | AH129: 0.3485 | AI129: 0.107 | AJ129: 0.1294 | AK129: 0.1121 | AL129: 0.0402 | AM129: 0.3198 | AN129: 0.0835 | AO129: 0.0215 | AP129: 0.25602 | AQ129: 0.05241
B130: This is a pretty good name: patrimony means inheritance and a society with high K/Y is one with a high capital stock relative to national income. | T130: 1969 | U130: 0.2872 | V130: 0.0746 | W130: 0.0185 | Y130: 1969 | Z130: 0.3396 | AA130: 0.0855 | AB130: 0.0209 | AC130: 0.2746772156 | AD130: 0.06695250959 | AG130: 1969 | AH130: 0.3393 | AI130: 0.1085 | AJ130: 0.1273 | AK130: 0.1035 | AL130: 0.0369 | AM130: 0.3182 | AN130: 0.0802 | AO130: 0.02 | AP130: 0.25707 | AQ130: 0.05188
B131: This capital will be passed on and inherited and Piketty goes on another data-gathering binge to show how wealth is incredibly unequally distributed. | T131: 1970 | U131: 0.2882 | V131: 0.0705 | W131: 0.0164 | Y131: 1970 | Z131: 0.3314 | AA131: 0.0833 | AB131: 0.0202 | AC131: 0.2741029279 | AD131: 0.065200468 | AG131: 1970 | AH131: 0.3263 | AI131: 0.1097 | AJ131: 0.1263 | AK131: 0.0903 | AL131: 0.0278 | AM131: 0.3151 | AN131: 0.078 | AO131: 0.0194 | AP131: 0.25669 | AQ131: 0.05133
T132: 1971 | U132: 0.2929 | V132: 0.0702 | W132: 0.0167 | Y132: 1971 | Z132: 0.3335 | AA132: 0.0847 | AB132: 0.0207 | AC132: 0.2780788972 | AD132: 0.06642769733 | AG132: 1971 | AH132: 0.3334 | AI132: 0.1108 | AJ132: 0.1286 | AK132: 0.094 | AL132: 0.0299 | AM132: 0.3175 | AN132: 0.0779 | AO132: 0.0191 | AP132: 0.25671 | AQ132: 0.05182
B133: We will not pursue that aspect of Piketty's work here, instead let's end this section on data by really reinforcing exactly what high K/Y means. | T133: 1972 | U133: 0.289 | V133: 0.0694 | W133: 0.0161 | Y133: 1972 | Z133: 0.3303 | AA133: 0.0852 | AB133: 0.0211 | AC133: 0.2728199163 | AD133: 0.06438619422 | AG133: 1972 | AH133: 0.3359 | AI133: 0.1107 | AJ133: 0.1288 | AK133: 0.0964 | AL133: 0.0313 | AM133: 0.3162 | AN133: 0.0775 | AO133: 0.0192 | AP133: 0.25811 | AQ133: 0.05323
B135: Click | E135: https://player.vimeo.com/video/238606237 | T135: 1973 | U135: 0.2831 | V135: 0.0699 | W135: 0.0168 | Y135: 1973 | Z135: 0.339 | AA135: 0.0887 | AB135: 0.0226 | AC135: 0.2722530952 | AD135: 0.06868969297 | AG135: 1973 | AH135: 0.3333 | AI135: 0.1112 | AJ135: 0.1305 | AK135: 0.0916 | AL135: 0.0276 | AM135: 0.3185 | AN135: 0.0774 | AO135: 0.0189 | AP135: 0.26141 | AQ135: 0.05422
E136: Click the link above if the button does not work. | T136: 1974 | U136: 0.281 | V136: 0.0654 | W136: 0.0158 | Y136: 1974 | Z136: 0.3333 | AA136: 0.085 | AB136: 0.0209 | AC136: 0.2643349025 | AD136: 0.06332088663 | AG136: 1974 | AH136: 0.3331 | AI136: 0.1119 | AJ136: 0.13 | AK136: 0.0912 | AL136: 0.0273 | AM136: 0.3236 | AN136: 0.0812 | AO136: 0.0211 | AP136: 0.26614 | AQ136: 0.05664
T137: 1975 | U137: 0.2782 | V137: 0.061 | W137: 0.014 | Y137: 1975 | Z137: 0.3341 | AA137: 0.0848 | AB137: 0.0208 | AC137: 0.2692838523 | AD137: 0.06442283471 | AG137: 1975 | AH137: 0.3343 | AI137: 0.1145 | AJ137: 0.1311 | AK137: 0.0887 | AL137: 0.0256 | AM137: 0.3262 | AN137: 0.0801 | AO137: 0.0204 | AP137: 0.26464 | AQ137: 0.0564
B138: Those elite British nobles inherited the estate and live off of their capital income in high style. | T138: 1976 | U138: 0.2789 | V138: 0.0589 | W138: 0.013 | Y138: 1976 | Z138: 0.3319 | AA138: 0.0844 | AB138: 0.0208 | AC138: 0.2632603096 | AD138: 0.05998831621 | AG138: 1976 | AH138: 0.3341 | AI138: 0.1144 | AJ138: 0.1311 | AK138: 0.0886 | AL138: 0.0259 | AM138: 0.3242 | AN138: 0.0789 | AO138: 0.0202 | AP138: 0.26656 | AQ138: 0.05735
B139: The workers (of which there are many, many more of than the idle rich) have only their labor income. | T139: 1977 | U139: 0.2796 | V139: 0.0593 | W139: 0.0127 | Y139: 1977 | Z139: 0.3168 | AA139: 0.0779 | AB139: 0.0194 | AC139: 0.2610089807 | AD139: 0.05788285225 | AG139: 1977 | AH139: 0.3358 | AI139: 0.1146 | AJ139: 0.1309 | AK139: 0.0903 | AL139: 0.0271 | AM139: 0.3243 | AN139: 0.079 | AO139: 0.0204 | AP139: 0.26937 | AQ139: 0.05856
B140: The gap between rich and poor, upstairs and downstairs is a chasm. | T140: 1978 | U140: 0.2778 | V140: 0.0572 | W140: 0.0124 | Y140: 1978 | Z140: 0.3138 | AA140: 0.078 | AB140: 0.0193 | AC140: 0.2595767836 | AD140: 0.05742291415 | AG140: 1978 | AH140: 0.3349 | AI140: 0.1145 | AJ140: 0.1309 | AK140: 0.0895 | AL140: 0.0265 | AM140: 0.3244 | AN140: 0.0795 | AO140: 0.0208 | AP140: 0.27431 | AQ140: 0.06056
T141: 1979 | U141: 0.2837 | V141: 0.0593 | W141: 0.013 | Y141: 1979 | Z141: 0.3103 | AA141: 0.0782 | AB141: 0.0197 | AC141: 0.2576697519 | AD141: 0.05675157424 | AG141: 1979 | AH141: 0.3421 | AI141: 0.1128 | AJ141: 0.1297 | AK141: 0.0996 | AL141: 0.0344 | AM141: 0.3235 | AN141: 0.0803 | AO141: 0.0216 | AP141: 0.27631 | AQ141: 0.06217
B142: Think Downton Abbey when you see values of K/Y of 7 or 8 years of national income. | T142: 1980 | Y142: 1980 | Z142: 0.3069 | AA142: 0.0763 | AB142: 0.0191 | AC142: 0.2617300814 | AD142: 0.0582480318 | AG142: 1980 | AH142: 0.3463 | AI142: 0.1146 | AJ142: 0.1315 | AK142: 0.1002 | AL142: 0.0341 | AM142: 0.3287 | AN142: 0.0818 | AO142: 0.0223 | AP142: 0.28061 | AQ142: 0.06425
T143: 1981 | U143: 0.3103 | V143: 0.0667 | W143: 0.0153 | Y143: 1981 | Z143: 0.3073 | AA143: 0.0755 | AB143: 0.0189 | AC143: 0.2600098808 | AD143: 0.058325735 | AG143: 1981 | AH143: 0.3454 | AI143: 0.115 | AJ143: 0.1302 | AK143: 0.1002 | AL143: 0.0357 | AM143: 0.3272 | AN143: 0.0803 | AO143: 0.0223 | AP143: 0.28144 | AQ143: 0.06425
A144: Summary: | B144: This sheet explains Piketty's data contribution. | T144: 1982 | U144: 0.3123 | V144: 0.0685 | W144: 0.0161 | Y144: 1982 | Z144: 0.2993 | AA144: 0.0707 | AB144: 0.0172 | AC144: 0.256795873 | AD144: 0.05802659403 | AG144: 1982 | AH144: 0.3533 | AI144: 0.115 | AJ144: 0.1303 | AK144: 0.108 | AL144: 0.0418 | AM144: 0.3322 | AN144: 0.0839 | AO144: 0.0245 | AP144: 0.28549 | AQ144: 0.06672
B145: He and his colleagues amassed very long series of K and Y for several countries. | T145: 1983 | U145: 0.3176 | V145: 0.0683 | W145: 0.0158 | Y145: 1983 | Z145: 0.3043 | AA145: 0.0699 | AB145: 0.0163 | AC145: 0.2598897925 | AD145: 0.0590862986 | AG145: 1983 | AH145: 0.3638 | AI145: 0.1153 | AJ145: 0.1329 | AK145: 0.1156 | AL145: 0.0462 | AM145: 0.3369 | AN145: 0.0859 | AO145: 0.0261 | AP145: 0.29086 | AQ145: 0.06955
B146: They also created data sets on income that include the ultra-rich, using tax records and other sources. | T146: 1984 | U146: 0.3252 | V146: 0.0716 | W146: 0.0167 | Y146: 1984 | Z146: 0.3052 | AA146: 0.0703 | AB146: 0.0165 | AC146: 0.2591649519 | AD146: 0.05722837174 | AG146: 1984 | AH146: 0.3674 | AI146: 0.1145 | AJ146: 0.133 | AK146: 0.1199 | AL146: 0.0498 | AM146: 0.3395 | AN146: 0.0889 | AO146: 0.0283 | AP146: 0.2961 | AQ146: 0.07268
T147: 1985 | U147: 0.3265 | V147: 0.074 | W147: 0.0182 | Y147: 1985 | Z147: 0.3105 | AA147: 0.072 | AB147: 0.017 | AC147: 0.2636383816 | AD147: 0.06067127346 | AG147: 1985 | AH147: 0.3756 | AI147: 0.1144 | AJ147: 0.1345 | AK147: 0.1267 | AL147: 0.0532 | AM147: 0.3425 | AN147: 0.0909 | AO147: 0.0291 | AP147: 0.2974 | AQ147: 0.07276
B148: There are three parts to the story here: | T148: 1986 | U148: 0.3294 | V148: 0.0755 | W148: 0.0186 | Y148: 1986 | Z148: 0.3139 | AA148: 0.0744 | AB148: 0.0181 | AC148: 0.2637642052 | AD148: 0.05913790488 | AG148: 1986 | AH148: 0.4063 | AI148: 0.1114 | AJ148: 0.1357 | AK148: 0.1592 | AL148: 0.074 | AM148: 0.3457 | AN148: 0.0913 | AO148: 0.0287 | AP148: 0.29943 | AQ148: 0.07326
A149: Part I: | B149: The K/Y ratio, more simply known as b, is a key variable. It expresses the intensity of the presence of capital in terms of the number of years of national income. | T149: 1987 | U149: 0.3327 | V149: 0.0778 | W149: 0.01960676157 | Y149: 1987 | Z149: 0.3173 | AA149: 0.0775 | AB149: 0.0198 | AC149: 0.2625327328 | AD149: 0.05736189961 | AG149: 1987 | AH149: 0.3825 | AI149: 0.1171 | AJ149: 0.1388 | AK149: 0.1266 | AL149: 0.049 | AM149: 0.3648 | AN149: 0.1075 | AO149: 0.0373 | AP149: 0.30589 | AQ149: 0.08153
A150: K/Y = b | B150: b of 7 or 8 are extremely high, while 2 or 3 are quite low. | T150: 1988 | U150: 0.3421 | V150: 0.0863 | W150: 0.02332740214 | Y150: 1988 | Z150: 0.3209 | AA150: 0.0792 | AB150: 0.0206 | AC150: 0.2642228172 | AD150: 0.05840412633 | AG150: 1988 | AH150: 0.4063 | AI150: 0.1134 | AJ150: 0.138 | AK150: 0.1549 | AL150: 0.068 | AM150: 0.3863 | AN150: 0.1317 | AO150: 0.0521 | AP150: 0.31945 | AQ150: 0.09385
B151: The data for the UK and other European countries show a U-shape: K/Y was high, then fell, but has been rising again. | T151: 1989 | U151: 0.3415 | V151: 0.0867 | W151: 0.0235024911 | Y151: 1989 | Z151: 0.3242 | AA151: 0.0821 | AB151: 0.022 | AC151: 0.2614761858 | AD151: 0.05770568999 | AG151: 1989 | AH151: 0.4008 | AI151: 0.1153 | AJ151: 0.1406 | AK151: 0.1449 | AL151: 0.06 | AM151: 0.3847 | AN151: 0.1261 | AO151: 0.0474 | AP151: 0.31529 | AQ151: 0.08694
B152: It is complicated, however; the USA's pattern is different. | T152: 1990 | U152: 0.369 | V152: 0.098 | W152: 0.02844875445 | Y152: 1990 | Z152: 0.3264 | AA152: 0.0823 | AB152: 0.022 | AC152: 0.2624509238 | AD152: 0.05783611992 | AG152: 1990 | AH152: 0.3998 | AI152: 0.1157 | AJ152: 0.1408 | AK152: 0.1433 | AL152: 0.0582 | AM152: 0.3884 | AN152: 0.1298 | AO152: 0.049 | AP152: 0.31794 | AQ152: 0.08993
T153: 1991 | U153: 0.3765 | V153: 0.1032 | W153: 0.03072491103 | Y153: 1991 | Z153: 0.3244 | AA153: 0.0797 | AB153: 0.0207 | AC153: 0.2593387781 | AD153: 0.05664539191 | AG153: 1991 | AH153: 0.3955 | AI153: 0.1183 | AJ153: 0.1436 | AK153: 0.1336 | AL153: 0.0512 | AM153: 0.3838 | AN153: 0.1217 | AO153: 0.0436 | AP153: 0.31431 | AQ153: 0.08561
A154: Part II: | B154: Instead of using synthetic measures like the Gini Coefficient, Piketty likes the simple Top 10% income share. | T154: 1992 | U154: 0.3764 | V154: 0.0986 | W154: 0.0287113879 | Y154: 1992 | Z154: 0.3223 | AA154: 0.0775 | AB154: 0.0197 | AC154: 0.2623607257 | AD154: 0.06044430223 | AG154: 1992 | AH154: 0.4082 | AI154: 0.1176 | AJ154: 0.1439 | AK154: 0.1467 | AL154: 0.0603 | AM154: 0.3982 | AN154: 0.1348 | AO154: 0.0521 | AP154: 0.3245 | AQ154: 0.09626
A155: Top 10% | B155: Using his high-quality data, he finds the same U-shape: worse at the beginning of the 20th century, then better, and now worse again. | T155: 1993 | U155: 0.3834 | V155: 0.1036 | W155: 0.0309 | Y155: 1993 | Z155: 0.3222 | AA155: 0.0765 | AB155: 0.0194 | AC155: 0.2579597408 | AD155: 0.05861501243 | AG155: 1993 | AH155: 0.4068 | AI155: 0.1185 | AJ155: 0.1459 | AK155: 0.1424 | AL155: 0.0573 | AM155: 0.3948 | AN155: 0.1282 | AO155: 0.0472 | AP155: 0.31849 | AQ155: 0.09054
T156: 1994 | U156: 0.3833 | V156: 0.106 | W156: 0.031 | Y156: 1994 | Z156: 0.3237 | AA156: 0.0771 | AB156: 0.0198 | AC156: 0.2566982718 | AD156: 0.05753473247 | AG156: 1994 | AH156: 0.4078 | AI156: 0.1189 | AJ156: 0.1466 | AK156: 0.1423 | AL156: 0.057 | AM156: 0.396 | AN156: 0.1285 | AO156: 0.047 | AP156: 0.31535 | AQ156: 0.0872
A157: Part III: | B157: This is the crucial logic of Piketty's argument: | T157: 1995 | U157: 0.3851 | V157: 0.1075 | W157: 0.0324 | Y157: 1995 | Z157: 0.3241 | AA157: 0.077 | AB157: 0.0196 | AC157: 0.2537898414 | AD157: 0.05615605328 | AG157: 1995 | AH157: 0.4211 | AI157: 0.1189 | AJ157: 0.1499 | AK157: 0.1523 | AL157: 0.0621 | AM157: 0.4054 | AN157: 0.1353 | AO157: 0.0498 | AP157: 0.32491 | AQ157: 0.09272
A158: b<->Top 10% | B158: While we don't know the drivers of income inequality, we do know how b is generated. | T158: 1996 | U158: 0.393 | V158: 0.119 | W158: 0.0413 | Y158: 1996 | Z158: 0.3204 | AA158: 0.0773 | AB158: 0.0201 | AC158: 0.2544593732 | AD158: 0.05630420052 | AG158: 1996 | AH158: 0.4348 | AI158: 0.1172 | AJ158: 0.1507 | AK158: 0.1669 | AL158: 0.0724 | AM158: 0.4116 | AN158: 0.1411 | AO158: 0.0533 | AP158: 0.33244 | AQ158: 0.09827
B159: Since there is a connection between K/Y and Top 10% income inequality, by knowing where b is headed, we know where inequality is going. | T159: 1997 | U159: 0.3894 | V159: 0.1207 | W159: 0.0415 | Y159: 1997 | Z159: 0.3217 | AA159: 0.0777 | AB159: 0.0201 | AC159: 0.2572766589 | AD159: 0.05692758105 | AG159: 1997 | AH159: 0.4464 | AI159: 0.115 | AJ159: 0.1512 | AK159: 0.1802 | AL159: 0.0818 | AM159: 0.4173 | AN159: 0.1477 | AO159: 0.0581 | AP159: 0.33972 | AQ159: 0.10461
T160: 1998 | U160: 0.3947 | V160: 0.1253 | W160: 0.0444 | Y160: 1998 | Z160: 0.3259 | AA160: 0.0794 | AB160: 0.0209 | AC160: 0.2606355708 | AD160: 0.05817310085 | AG160: 1998 | AH160: 0.4539 | AI160: 0.1129 | AJ160: 0.1501 | AK160: 0.1909 | AL160: 0.09 | AM160: 0.4212 | AN160: 0.1529 | AO160: 0.062 | AP160: 0.34433 | AQ160: 0.11005
B161: Piketty is worried about the future because he thinks we could return to a Downton Abbey-like society, with b values of 7 or 8 years of national income. | T161: 1999 | U161: 0.3897 | V161: 0.1251 | W161: 0.0454 | Y161: 1999 | Z161: 0.33 | AA161: 0.0815 | AB161: 0.0218 | AC161: 0.2639145087 | AD161: 0.05971168412 | AG161: 1999 | AH161: 0.4647 | AI161: 0.1125 | AJ161: 0.1518 | AK161: 0.2004 | AL161: 0.0962 | AM161: 0.4267 | AN161: 0.1587 | AO161: 0.0664 | AP161: 0.35184 | AQ161: 0.1167
T162: 2000 | U162: 0.3843 | V162: 0.1267 | W162: 0.0464 | Y162: 2000 | Z162: 0.3305 | AA162: 0.0829 | AB162: 0.0225 | AC162: 0.2643143791 | AD162: 0.0607374063 | AG162: 2000 | AH162: 0.4761 | AI162: 0.11 | AJ162: 0.1509 | AK162: 0.2152 | AL162: 0.1088 | AM162: 0.4311 | AN162: 0.1649 | AO162: 0.0713 | AP162: 0.35461 | AQ162: 0.1226
B163: In 2010, the USA had a b of 4.3 years of national income (see cell M38). | T163: 2001 | U163: 0.3933 | V163: 0.1271 | W163: 0.0451 | Y163: 2001 | Z163: 0.3309 | AA163: 0.0843 | AB163: 0.0233 | AC163: 0.2646342755 | AD163: 0.06176312848 | AG163: 2001 | AH163: 0.4482 | AI163: 0.1147 | AJ163: 0.1513 | AK163: 0.1822 | AL163: 0.0837 | AM163: 0.4223 | AN163: 0.1537 | AO163: 0.0626 | AP163: 0.3422 | AQ163: 0.10876
B164: So that's a perfectly respectable K/Y and everything is fine, right? | T164: 2002 | U164: 0.3869 | V164: 0.1227 | W164: 0.0422 | Y164: 2002 | Z164: 0.3303 | AA164: 0.0846 | AB164: 0.0235 | AC164: 0.2641544309 | AD164: 0.06198292609 | AG164: 2002 | AH164: 0.4382 | AI164: 0.1175 | AJ164: 0.1521 | AK164: 0.1686 | AL164: 0.0734 | AM164: 0.4236 | AN164: 0.1499 | AO164: 0.0594 | AP164: 0.33379 | AQ164: 0.10318
T165: 2003 | U165: 0.3775 | V165: 0.1212 | W165: 0.0423 | Y165: 2003 | Z165: 0.3311 | AA165: 0.0855 | AB165: 0.0237 | AC165: 0.2647942237 | AD165: 0.06264231892 | AG165: 2003 | AH165: 0.4453 | AI165: 0.1177 | AJ165: 0.1523 | AK165: 0.1753 | AL165: 0.0787 | AM165: 0.4276 | AN165: 0.1521 | AO165: 0.0611 | AP165: 0.33109 | AQ165: 0.10215
B166: Not so fast. What if we knew K/Y was going to rise? | T166: 2004 | U166: 0.3954 | V166: 0.1289 | W166: 0.0457 | Y166: 2004 | Z166: 0.3345 | AA166: 0.0873 | AB166: 0.0245 | AC166: 0.2675133429 | AD166: 0.06396110458 | AG166: 2004 | AH166: 0.464 | AI166: 0.1145 | AJ166: 0.152 | AK166: 0.1975 | AL166: 0.0946 | AM166: 0.4364 | AN166: 0.1634 | AO166: 0.069 | AP166: 0.34184 | AQ166: 0.11045
B167: This, of course, begs questions like these: | T167: 2005 | U167: 0.4162 | V167: 0.1425 | W167: 0.0519 | Y167: 2005 | Z167: 0.3289 | AA167: 0.0873 | AB167: 0.0248 | AC167: 0.2680347936 | AD167: 0.06696110458 | AG167: 2005 | AH167: 0.4833 | AI167: 0.1117 | AJ167: 0.1524 | AK167: 0.2192 | AL167: 0.1098 | AM167: 0.4494 | AN167: 0.1768 | AO167: 0.0776 | AP167: 0.34652 | AQ167: 0.11434
B168: Where does K/Y come from? How is it determined? What influences it and where is headed? | T168: 2006 | U168: 0.4199 | V168: 0.1482 | W168: 0.0555 | Y168: 2006 | Z168: 0.3281 | AA168: 0.0894 | AB168: 0.0265 | AC168: 0.2683950009 | AD168: 0.06949968785 | AG168: 2006 | AH168: 0.4932 | AI168: 0.1124 | AJ168: 0.1526 | AK168: 0.2282 | AL168: 0.1159 | AM168: 0.455 | AN168: 0.1806 | AO168: 0.0792 | AP168: 0.35059 | AQ168: 0.11725
T169: 2007 | U169: 0.4261 | V169: 0.1544 | W169: 0.0605 | Y169: 2007 | Z169: 0.3315 | AA169: 0.0925 | AB169: 0.0274189038 | AC169: 0.2721141201 | AD169: 0.07177092983 | AG169: 2007 | AH169: 0.4974 | AI169: 0.1107 | AJ169: 0.1517 | AK169: 0.235 | AL169: 0.1228 | AM169: 0.4567 | AN169: 0.1833 | AO169: 0.0816 | AP169: 0.35703 | AQ169: 0.12226
B170: This is super-interesting. Let's find out. | T170: 2008 | U170: 0.4167666667 | V170: 0.1471333333 | W170: 0.0557 | Y170: 2008 | Z170: 0.3303 | AA170: 0.088 | AB170: 0.02608501119 | AC170: 0.2721544309 | AD170: 0.06947396567 | AG170: 2008 | AH170: 0.4823 | AI170: 0.1171 | AJ170: 0.1557 | AK170: 0.2095 | AL170: 0.104 | AM170: 0.4596 | AN170: 0.1789 | AO170: 0.0782 | AP170: 0.34857 | AQ170: 0.11376
T171: 2009 | U171: 0.4043 | V171: 0.1388 | W171: 0.0511 | Y171: 2009 | Z171: 0.3269 | AA171: 0.0838 | AB171: 0.02484004474 | AC171: 0.2704353118 | AD171: 0.06839679913 | AG171: 2009 | AH171: 0.465 | AI171: 0.1239 | AJ171: 0.1599 | AK171: 0.1812 | AL171: 0.083 | AM171: 0.4547 | AN171: 0.1668 | AO171: 0.0704 | AP171: 0.33659 | AQ171: 0.10238
A172: Click | T172: 2010 | U172: 0.4157222222 | V172: 0.1467777778 | W172: 0.05576666667 | Y172: 2010 | Z172: 0.3295666667 | AA172: 0.0881 | AB172: 0.02611465324 | AC172: 0.2735679543 | AD172: 0.07154723154 | AG172: 2010 | AH172: 0.479 | AI172: 0.1218 | AJ172: 0.1595 | AK172: 0.1977 | AL172: 0.0952 | AM172: 0.4626 | AN172: 0.1742 | AO172: 0.075 | AP172: 0.3447 | AQ172: 0.10898
T173: Source: | U173: http://piketty.pse.ens.fr/en/capital21c2

Sheet Algebra (hidden)
A1: This is from Humberto Barreto, Teaching Macroeconomics with Microsoft Excel, Cambridge University Press, 2015
A2: www.depauw.edu/site/learn/macroexcel/ | D2: TechProgress.xls
A4: Click
A6: Below is what was displayed in the Piketty's Problem video on the Intro sheet.
A8: The model is solved in terms of capital per effective worker (k), not K/Y, but if you can follow the equations below, then you should be able to transform k into K/Y.
A12: Welcome (for the last time!) to the Algebra of the Solow Model
A14: As was the case when population growth was added to the model, incorporating technological progress is neither easy nor particularly fun, but it does help you understand the model
A15: and how it is implemented in the EqPath sheet.
A17: Each step will be carefully described in this sheet.
A19: We get a different result than that obtained from incorporating n -- when we add g, we simply cannot get the standard Dk equation, it is an approximation.
A20: If you are one of those people who need to know exactly what is going on, then read on.
A22: The Basic Idea
A23: Over time, the number of workers grows at a constant rate, n, and technology improves at a constant rate, g.
A25: Therefore, this year’s k, the stock of capital per worker, will change due to FOUR effects:
B27: 1) investment – k will grow as more machines are added (from the share of output, s, devoted to making capital goods)
B29: 2) depreciation – k will fall as machines wear out and are thrown away (based on d, the rate of depreciation)
B31: 3) population growth – k will fall as there are more workers upon which to spread machines around; L grows at constant rate n
B33: 4) technological progress – k will fall as improved technology makes it seem that there are (but there aren't, it's imaginary) more workers upon which to spread machines around
B34: This is what we are adding to this model and we are doing it as imaginary workers because we know how to solve models with increasing population.
B35: The number of imaginary workers grows at rate g.
A37: The standard Dk equation captures the four influences on changes in capital per worker in one single equation that, when set equal to zero, becomes the steady-state (equilibrium) condition for the model:
E39: Equation Editor used throughout; double click an equation to edit it.
A41: How does the math work? How is this equation derived?
A43: The algebra below presumes you are familiar with the algebra from the Population.xls workbook.
A45: The Solow Model with Constant Technological Progress
A47: What happens to the model when L is growing at a constant rate, n, and we add labor-augmenting technological progress?
A49: We return to the starting point:
A52: We divide both sides of the equation by the number of effective workers in time period t+1:
A56: We assume constant population growth (which equals constant labor force growth since all people are workers), thus, we have, Lt+1 = (1+n)Lt.
A58: We assume constant technological progress, thus, we have, At+1 = (1+g)At.
A60: So, we can simply replace the Lt+1 values on the right-hand-side with (1+n)Lt and the At+1 values with (1+g)At:
A64: With the subscripts equal to each other, we can apply the K/AL = k and Y/AL = y substitution:
H66: k and y are now in units of effective workers. This is a critical point that must be remembered.
A68: We have to get rid of the 1/(1+n)(1+g) term in front of the kt term to get Dk, but how?
A70: We begin by reorganizing the terms on the right-hand side in anticipation of collecting the kt terms on the right-hand-side:
A74: Now we can combine the two kt terms into one:
A78: We can simplify the expression in the brackets by putting them over their common denominator:
A82: We apply the same nifty algebra trick we used before, adding and subtracting terms that add up to zero from the equation and doing it in a way that gives us the solitary kt term that we seek.
I85: The trick is that 1 - (1+n)(1+g)/(1+n)(1+g) equals zero (since we are adding and subtracting 1), so we have not changed the equation.
A87: Then we multiply through by kt to get the isolated kt that was the reason we went through these steps:
I89: That is pretty clever, don't you agree?
A91: We can now move the kt term to the left-hand side and simplify the expression within the brackets on the right-hand side by putting everything over the common denominator:
A95: We have to clean up the numerator on the last term on the right-hand side, being really careful with the signs:
I97: Here is where n and g first appear in the steady-state condition, next to d.
A99: The left-hand side is now Dk, the ones in the bracket add up to zero so they disappear, and we can pull the minus signs on the remaining terms in front of the bracket like this:
A103: We can simplify a bit by putting the right-hand side over the common denominator, (1 + n)(1 + g):
F105: Look at how g acts like n eroding k, but remember that this is NOT REAL, these are imaginary workers.
A107: You have to admit we are pretty close to Dk = syt - (d + n + g)kt. The only thing we need to do is eliminate that (1 + n)(1 + g) term in the denominator and get rid of ng.
A109: How do we get the rest of the way?
A111: Well, it turns out that, strictly speaking, we don't! Just like when we added population, at the steady-state solution, the (1 + n)(1 + g) term will not matter.
A113: Dk = 0 when the numerator is zero, that is, when the sy and (d + n + g + ng)k terms equal each other, no matter the value of the denominator on the right-hand side.
A115: In other words, when sy = (d + n + g + ng)k, k will repeat itself endlessly and, thus, will be at its steady-state solution, regardless of the denominator in the right-hand side.
A117: The upshot of all of this is that when we are at the steady-state solution, we can safely ignore the (1 + n)(1 + g) term and treat the steady-state condition as simply syt - (d + n + g)kt = 0.
A119: What about the ng term? Believe it or not, there is no way to finesse this. It is simply dropped.
A121: The rationale behind doing this is that ng will be small because n and g are both small; after all, if n = 0.01 and g = 0.02, then ng = 0.0002.
A123: The work below shows the difference dropping the ng term has on the baseline problem in the EqPath sheet.
A125: Exogenous Variables | F125: Solving for steady-state k via analytical methods:
A126: g | B126: 0.02 | C126: labor-augmenting tech change
A127: n | B127: 0.01 | C127: %D population
A128: A forced equal to 1.
A129: a | B129: 0.5 | C129: productivity of capital
A130: s | B130: 0.3 | C130: rate of saving
A131: d | B131: 0.1 | C131: rate of depreciation
A133: Click on the cells in the table to reveal the formulas.
A134: The exogenous variable values are those in the green cells above. Change them to see the effect.
B135: Steady-state keff
A136: Exact | B136: =(B130/(B131+B127+B126+B127*B126))^(1/(1-B129)) -> 5.309095542 | C136: Using Dk=sy-(d+n+g+ng)k
A137: Approximate | B137: =(B130/(B131+B127+B126))^(1/(1-B129)) -> 5.325443787 | C137: Using Dk=sy-(d+n+g)k
A139: Exact - Approximate | B139: =B136-B137 -> -0.0163482445
A140: % Approx Error | B140: =B139/B137 -> -0.003069837023 | C140: The difference between Exact and Approximate, where the latter omits the ng term, is very small in typical cases.
C141: As n and g increase, the approximation error rises.
A144: All of the macro textbooks sweep all of this under the rug and just show the standard (approximated) equation:
A148: This allows the professor to say, "See? If n = g = 0, it's just like the basic model where syt - dkt = 0. So memorize this new equation and you are all set."
A150: The EqPath sheet gets it exactly right, including the denominator and ng term in the evolution of the model.
A152: Now you know what is really going with the Solow Model with population growth and technological progress, instead of merely memorizing a steady-state equation.
A153: Q. E. D.
A155: Click

Sheet Cycle (hidden)
A1: Flow
A2: Diagram
B7: K (capital), L (labor), Y (output), C (consumption), and I (investment) are tracked each time period.
O8: INITIAL
B9: The picture above may be worth a thousand words -- it expresses the cycle-logic of the Solow Model.
B10: Look at it and mentally walk through it. The repetitive behavior, the loop back to the start point, is the key.
B11: This is the model Piketty and macroeconomists use to understand economic growth.
A12: Key Point --> | B12: The Solow Model determines a steady-state (equilibrium) K/Y ratio.
A14: History | B14: This model was first published in 1956 by Robert Solow and it won him a Nobel Prize in Economics.
B15: https://www.nobelprize.org/nobel_prizes/economic-sciences/laureates/1987/solow-bio.html
B16: Solow assumed a single composite good that can be consumed or used to make other goods (capital).
B17: This magic stuff can transform itself into consumption goods (such as an apple or clothing) or become machinery.
B18: Solow measured everything in units of the composite good. We will assume that the composite good sells for $1/unit.
B19: We can then interpret output, consumption, investment, and capital in value (or monetary) terms.
B21: Solow solved the model with math, but there is a steep learning curve along that route.
B22: There are time subscripts on the variables and it becomes complicated pretty quickly.
B23: Click
D24: You don't actually have to click if you don't want to -- it's the algebra of the model and it will not make a lot of sense to most people.
B26: The point of this workbook is that there is another path to understanding the Solow Model.
B27: We can simulate the model in Excel and then directly observe the results -- we do not need the math at all to solve and understand the model.
B28: Before we can do this, however, we need to make sure we exactly understand how the model functions.
A30: Walking | B30: The flow diagram below is the same as the one above, but a new letter, s, has been added and it plays a crucial role.
A31: Through | B31: The picture says that labor and capital produce output according to the production function, f(L,K).
B32: Some of the output is consumed (C) and the rest is added to the existing capital (invested). The curve along the bottom shows that the process is then repeated.
B39: Investment is special because it is tools, plant, and equipment that are used to make other goods.
B40: Investment is addition to the capital stock. Investment is literally new K.
B41: Investment is a flow (these goods are produced over a period of time) that is added to the existing K stock at the end of the year.
C42: Y will increase next year when I is added to existing K.
B44: A crucial element of the model is the composition of output because the split between C and I determines changes in future output.
A45: Key Parameter --> | B45: The split is determined by the saving rate (s). This is the percentage, anywhere from 0 to 100%, of output that is saved (not consumed).
B46: Everything that is saved is automatically invested.
B47: Consider two countries: in A, all output is consumption goods; while B pumps half of its output into Investment, making more machines.
B48: What do you think will happen over time?
B49: Isn't it obvious that A's economy will remain stagnant (or decline if there is depreciation of capital) while B's will grow?
B50: After all, B's economy is Investing, that is, adding new plant and equipment, which can be used to make MORE output next year.
B51: In the Solow Model, s is given and does not change as the model cranks away and is attracted to its equilibrium position.
A53: Stepping | B53: Because the cycle-logic of the Solow Model is so important, let's do one more thing before we reveal the full-scale simulation.
A54: Through | B54: We will step through a few years, slowly and carefully following the variables.
B55: Output is produced by labor and capital according to this function:
B56: Y = L1/2K1/2
B57: This is called a Cobb-Douglas production function. It says that output is the square root of the number of hours worked times the square root of the number of machines.
B58: If you have 4 hours of work and 9 machines, ta da, you get 2 x 3 = 6 units of output.
B59: The saving rate, s, is 25% so of the 6 units produced, 1/4 x 6 = 1.5 is saved and then invested (for next year) and the rest, 4.5, is consumed.
B61: Begin stepping through the model by clicking the button below. Pay close attention to what happens and how the numbers are being calculated.
B62: Click
B66: We will track everything that happens in this table:
B67: Year | C67: L | D67: K | E67: Y | F67: C | G67: I | H67: %DK | I67: %DY | J67: K/Y
B68: 1 | C68: 25 | D68: 100 | E68: =(C68^0.5)*(D68^0.5) -> 50 | F68: =(3/4)*E68 -> 37.5 | G68: =(1/4)*E68 -> 12.5 | J68: =D68/E68 -> 2
B69: 2 | C69: 25 | D69: =D68+G68 -> 112.5 | E69: =(C69^0.5)*(D69^0.5) -> 53.03300859 | F69: =(3/4)*E69 -> 39.77475644 | G69: =(1/4)*E69 -> 13.25825215 | H69: =(D69-D68)/D68 -> 0.125 | I69: 0.06066017178 | J69: =D69/E69 -> 2.121320344
B70: 3 | C70: 25 | D70: =D69+G69 -> 125.7582521 | E70: =(C70^0.5)*(D70^0.5) -> 56.07099343 | F70: =(3/4)*E70 -> 42.05324507 | G70: =(1/4)*E70 -> 14.01774836 | H70: 0.1178511302 | I70: 0.05728479143 | J70: =D70/E70 -> 2.242839737
B71: 4 | C71: 25 | D71: =D70+G70 -> 139.7760005 | E71: =(C71^0.5)*(D71^0.5) -> 59.11345035 | F71: =(3/4)*E71 -> 44.33508776 | G71: =(1/4)*E71 -> 14.77836259 | H71: 0.1114658332 | I71: 0.05426079942 | J71: =D71/E71 -> 2.364538014
B74: After you finish stepping through the model, be sure to explore the cells in the table. Click and inspect the numbers and formulas.
B75: Get comfortable with the calculations -- nothing should be a mystery. The mechanics are straightforward even though the solution is not.
B77: So this is the basic model. There are a few more bells and whistles (depreciation, population growth and technical progress), but the logic is the same.
B78: In fact, this is the workhorse model of modern growth theory and there have been extensions and improvements, but the core of a cyclical process is the same:
C79: Inputs make output, which is split into consumption and investment (determined by the saving rate), which is added to previous K, and the process repeats.
B81: There is one major idea that remains to be explained: the steady-state (also known as equilibrium).
B82: But instead of doing that here (I'm guessing you were growing tired of clicking the buttons to crank out another year), we will do this on our
B83: full-scale simulation platform.
A85: Summary: | B85: We are poised to make the leap!
B86: We know (from the video on the Intro sheet) that Piketty's Problem has two sides:
C87: 1) He is concerned about income and wealth inequality and wants to figure out how to measure, explain, and control it, but
C88: 2) The theoretical apparatus on which he relies (the Solow Model) is quite complicated.
B89: We know (from the Def and Data sheets) that inequality is influenced by many factors, but a high K/Y is associated with high inequality.
C90: A high K/Y is 7 or 8 years of national income (from the Understanding Beta video)
C91: A high K/Y is the hallmark of Patrimonial Capitalism -- the K stock plays a dominant role and idle rich live off of unearned income a la Downton Abbey.
B92: We know that the Solow Model determines K/Y, but this sheet did not explain this because it did not explain how the cyclical process settles down.
B93: This sheet did, however, set the table. It emphasized the cyclical nature of the Solow Model's mechanics.
B94: With this prep work, we are ready to see the full-scale simulation and understand why Piketty is worried about what the future holds in terms of inequality.
B96: Before you click the button, a word of warning: you will be presented with a complicated sheet.
B97: Take a moment to scroll around. Click on a few cells to see if they have numbers or formulas.
B99: The steady-state is a crucial idea -- it tells us where the economy is tending and, once there, it will remain there. It's just like equilibrium.
B100: Enjoy!
B101: Click

Sheet Model (hidden)
A1: Understanding Piketty via Simulation of the Solow Model | I1: Click the links below
A2: Exogenous Parameters | I2: the buttons if needed.
A3: a | B3: 0.3 | C3: exponent on K | F3: Click
A4: g | B4: 0.02 | C4: tech progress | F4: (in order) | G4: https://player.vimeo.com/video/239720469
A5: n | B5: 0.01 | C5: pop growth rate
A6: s | B6: 0.25 | C6: saving rate | G6: https://player.vimeo.com/video/240381464
A7: d | B7: 0.02 | C7: depreciation rate
G8: https://player.vimeo.com/video/240409378
L10: Steady-state:
L11: =s/(dep+n+g+n*g) -> 4.980079681 | M11: =alpha/L11 -> 0.06024
L12: K/Y | P12: Per person
A13: Year | B13: A | C13: L | D13: K | E13: Y | F13: C | G13: I | H13: depK | I13: DK | J13: %DK | K13: %DY | L13: b | M13: r | P13: y = Y/L | Q13: %Dy
A14: 1 | B14: 1 | C14: 1 | D14: 1 | E14: =(B14*C14)^(1-alpha)*(D14^alpha) -> 1 | F14: =(1-s)*E14 -> 0.75 | G14: =s*E14 -> 0.25 | H14: =dep*D14 -> 0.02 | I14: =G14-H14 -> 0.23 | L14: =D14/E14 -> 1 | M14: =alpha/L14 -> 0.3 | P14: =E14/C14 -> 1
A15: 2 | B15: =(1+g)*B14 -> 1.02 | C15: =(1+n)*C14 -> 1.01 | D15: =D14+I14 -> 1.23 | E15: 1.086467189 | F15: 0.8148503918 | G15: 0.2716167973 | H15: 0.0246 | I15: 0.2470167973 | J15: =(D15-D14)/D14 -> 0.23 | K15: =(E15-E14)/E14 -> 0.08646718907 | L15: 1.13210966 | M15: 0.2649919973 | P15: 1.075710088 | Q15: =(P15-P14)/P14 -> 0.07571008819
A16: 3 | B16: 1.0404 | C16: 1.0201 | D16: =D15+I15 -> 1.477016797 | E16: 1.171941124 | F16: 0.8789558428 | G16: 0.2929852809 | H16: 0.02954033595 | I16: 0.263444945 | J16: =(D16-D15)/D15 -> 0.2008266644 | K16: 0.07867143673 | L16: =D16/E16 -> 1.260316553 | M16: =alpha/L16 -> 0.2380354359 | P16: =E16/C16 -> 1.148849254 | Q16: =(P16-P15)/P15 -> 0.06799152151
A17: 4 | B17: 1.061208 | C17: 1.030301 | D17: =D16+I16 -> 1.740461742 | E17: 1.25699801 | F17: 0.9427485073 | G17: 0.3142495024 | H17: 0.03480923485 | I17: 0.2794402676 | J17: 0.1783628632 | K17: 0.07257778075 | L17: =D17/E17 -> 1.384617739 | M17: =alpha/L17 -> 0.2166662982 | P17: =E17/C17 -> 1.220029884 | Q17: 0.06195819876
A18: 5 | B18: 1.08243216 | C18: 1.04060401 | D18: =D17+I17 -> 2.01990201 | E18: 1.342083132 | F18: 1.006562349 | G18: 0.335520783 | H18: 0.0403980402 | I18: 0.2951227428 | J18: 0.1605552485 | K18: 0.06768914629 | L18: =D18/E18 -> 1.505049845 | M18: =alpha/L18 -> 0.1993289465 | P18: =E18/C18 -> 1.28971551 | Q18: 0.05711796662
A19: 6 | B19: 1.104080803 | C19: 1.05101005 | D19: =D18+I18 -> 2.315024753 | E19: 1.42755254 | F19: 1.070664405 | G19: 0.356888135 | H19: 0.04630049505 | I19: 0.3105876399 | J19: 0.1461074554 | K19: 0.06368413852 | L19: =D19/E19 -> 1.62167394 | M19: =alpha/L19 -> 0.1849940315 | P19: =E19/C19 -> 1.358267259 | Q19: 0.0531526124
A20: 7 | B20: 1.126162419 | C20: 1.061520151 | D20: =D19+I19 -> 2.625612393 | E20: 1.513699527 | F20: 1.135274646 | G20: 0.3784248819 | H20: 0.05251224785 | I20: =G20-H20 -> 0.325912634 | J20: =(D20-D19)/D19 -> 0.1341616929 | K20: =(E20-E19)/E19 -> 0.06034593128 | L20: =D20/E20 -> 1.734566435 | M20: =alpha/L20 -> 0.1729538829 | P20: =E20/C20 -> 1.425973427 | Q20: 0.04984745671
A21: 8 | B21: 1.148685668 | C21: 1.072135352 | D21: 2.951525027 | E21: 1.600772129 | F21: 1.200579097 | G21: 0.4001930322 | H21: 0.05903050053 | I21: 0.3411625317 | J21: 0.1241282357 | K21: 0.05752304199 | L21: 1.843813353 | M21: 0.1627062737 | P21: 1.493069066 | Q21: 0.04705251682
A22: 9 | B22: 1.171659381 | C22: 1.082856706 | D22: 3.292687558 | E22: 1.688985075 | F22: 1.266738806 | G22: 0.4222462687 | H22: 0.06585375117 | I22: 0.3563925176 | J22: 0.1155885614 | K22: 0.05510649791 | L22: 1.949506604 | M22: 0.1538850904 | P22: 1.55974938 | Q22: 0.04465989892
A23: 10 | B23: 1.195092569 | C23: 1.093685273 | D23: 3.649080076 | E23: 1.778528197 | F23: 1.333896148 | G23: 0.4446320494 | H23: 0.07298160152 | I23: 0.3716504478 | J23: 0.1082375753 | K23: 0.05301593475 | L23: 2.05174148 | M23: 0.1462172515 | P23: 1.626179159 | Q23: 0.0425900344
A24: 11 | B24: 1.21899442 | C24: 1.104622125 | D24: 4.020730524 | E24: 1.86957249 | F24: 1.402179367 | G24: 0.4673931224 | H24: 0.08041461047 | I24: 0.3869785119 | J24: 0.1018477096 | K24: 0.05119080618 | L24: 2.150614938 | M24: 0.1394949857 | P24: 1.692499586 | Q24: 0.04078297642
A25: 12 | B25: 1.243374308 | C25: 1.115668347 | D25: 4.407709036 | E25: 1.962274572 | F25: 1.471705929 | G25: 0.4905686429 | H25: 0.08815418071 | I25: 0.4024144622 | J25: 0.09624582142 | K25: 0.04958464173 | L25: 2.246224407 | M25: 0.1335574483 | P25: 1.758833239 | Q25: 0.03919271458
A26: 13 | B26: 1.268241795 | C26: 1.12682503 | D26: 4.810123498 | E26: 2.056780047 | F26: 1.542585036 | G26: 0.5141950119 | H26: 0.09620246996 | I26: 0.4179925419 | J26: 0.09129787356 | K26: 0.0481611886 | L26: 2.338666939 | M26: 0.1282782063 | P26: 1.82528786 | Q26: 0.03778335504
A27: 14 | B27: 1.29360663 | C27: 1.13809328 | D27: 5.22811604 | E27: 2.153226073 | F27: 1.614919555 | G27: 0.5383065182 | H27: 0.1045623208 | I27: 0.4337441974 | J27: 0.08689850523 | K27: 0.04689175471 | L27: 2.428038609 | M27: 0.1235565196 | P27: 1.891959218 | Q27: 0.03652648981
A28: 15 | B28: 1.319478763 | C28: 1.149474213 | D28: 5.661860237 | E28: 2.251743355 | F28: 1.688807516 | G28: 0.5629358387 | H28: 0.1132372047 | I28: 0.4496986339 | J28: 0.08296376632 | K28: 0.04575333864 | L28: 2.514434083 | M28: 0.1193111412 | P28: 1.958933336 | Q28: 0.03539934519
A29: 16 | B29: 1.345868338 | C29: 1.160968955 | D29: 6.111558871 | E29: 2.352457727 | F29: 1.764343296 | G29: 0.5881144318 | H29: 0.1222311774 | I29: 0.4658832544 | J29: 0.07942595103 | K29: 0.04472728765 | L29: 2.59794631 | M29: 0.1154758275 | P29: 2.026288228 | Q29: 0.03438345312
A30: 17 | B30: 1.372785705 | C30: 1.172578645 | D30: 6.577442126 | E30: 2.455491419 | F30: 1.841618564 | G30: 0.6138728547 | H30: 0.1315488425 | I30: 0.4823240122 | J30: 0.07622985628 | K30: 0.0437983179 | L30: 2.678666305 | M30: 0.111996033 | P30: 2.094095291 | Q30: 0.03346368109
A31: 18 | B31: 1.400241419 | C31: 1.184304431 | D31: 7.059766138 | E31: 2.560964076 | F31: 1.920723057 | G31: 0.640241019 | H31: 0.1411953228 | I31: 0.4990456962 | J31: 0.07333002754 | K31: 0.04295378775 | L31: 2.756683002 | M31: 0.108826441 | P31: 2.162420412 | Q31: 0.03262751262
A32: 19 | B32: 1.428246248 | C32: 1.196147476 | D32: 7.558811834 | E32: 2.668993611 | F32: 2.001745208 | G32: 0.6672484027 | H32: 0.1511762367 | I32: 0.516072166 | J32: 0.0706887008 | K32: 0.04218315122 | L32: 2.83208315 | M32: 0.1059290932 | P32: 2.23132487 | Q32: 0.03186450616
A33: 20 | B33: 1.456811173 | C33: 1.20810895 | D33: 8.074884 | E33: 2.779696904 | F33: 2.084772678 | G33: 0.694924226 | H33: 0.16149768 | I33: 0.533426546 | J33: 0.06827424434 | K33: 0.04147754153 | L33: 2.904951251 | M33: 0.1032719568 | P33: 2.300866079 | Q33: 0.0311658827
A34: 21 | B34: 1.485947396 | C34: 1.22019004 | D34: 8.608310546 | E34: 2.8931904 | F34: 2.1698928 | G34: 0.7232976 | H34: 0.1721662109 | I34: 0.5511313891 | J34: 0.06605996396 | K34: 0.04082945001 | L34: 2.975369525 | M34: 0.1008278123 | P34: 2.371098194 | Q34: 0.03052420793
A35: 22 | B35: 1.515666344 | C35: 1.23239194 | D35: 9.159441935 | E35: 3.009590613 | F35: 2.25719296 | G35: 0.7523976533 | H35: 0.1831888387 | I35: 0.5692088146 | J35: 0.06402317692 | K35: 0.04023247597 | L35: 3.043417897 | M35: 0.09857338366 | P35: 2.442072619 | Q35: 0.02993314452
A36: 23 | B36: 1.545979671 | C36: 1.24471586 | D36: 9.72865075 | E36: 3.129014569 | F36: 2.346760927 | G36: 0.7822536422 | H36: 0.194573015 | I36: 0.5876806272 | J36: 0.06214448638 | K36: 0.03968112976 | L36: 3.109174002 | M36: 0.09648864933 | P36: 2.513838435 | Q36: 0.02938725718
A37: 24 | B37: 1.576899264 | C37: 1.257163018 | D37: 10.31633138 | E37: 3.251580186 | F37: 2.438685139 | G37: 0.8128950465 | H37: 0.2063266275 | I37: 0.6065684189 | J37: 0.06040720778 | K37: 0.03917067639 | L37: 3.1727132 | M37: 0.09455629333 | P37: 2.586442759 | Q37: 0.02888185781
A38: 25 | B38: 1.608437249 | C38: 1.269734649 | D38: 10.9228998 | E38: 3.377406618 | F38: 2.533054963 | G38: 0.8443516544 | H38: 0.2184579959 | I38: 0.6258936585 | J38: 0.05879691111 | K38: 0.03869701027 | L38: 3.234108602 | M38: 0.09276126343 | P38: 2.659931051 | Q38: 0.02841288146
A39: 26 | B39: 1.640605994 | C39: 1.282431995 | D39: 11.54879345 | E39: 3.506614557 | F39: 2.629960917 | G39: 0.8766536391 | H39: 0.2309758691 | I39: 0.64567777 | J39: 0.05730105286 | K39: 0.03825655402 | L39: 3.293431105 | M39: 0.09109041313 | P39: 2.734347373 | Q39: 0.02797678616
A40: 27 | B40: 1.673418114 | C40: 1.295256315 | D40: 12.19447122 | E40: 3.639326509 | F40: 2.729494882 | G40: 0.9098316272 | H40: 0.2438894245 | I40: 0.6659422028 | J40: 0.05590867761 | K40: 0.03784617623 | L40: 3.35074943 | M40: 0.08953220952 | P40: 2.809734619 | Q40: 0.02757047152
A41: 28 | B41: 1.706886477 | C41: 1.308208878 | D41: 12.86041343 | E41: 3.77566705 | F41: 2.831750287 | G41: 0.9439167624 | H41: 0.2572082685 | I41: 0.6867084939 | J41: 0.0546101746 | K41: 0.03746312412 | L41: 3.406130164 | M41: 0.08807649313 | P41: 2.886134709 | Q41: 0.027191212
A42: 29 | B42: 1.741024206 | C42: 1.321290967 | D42: 13.54712192 | E42: 3.915763055 | F42: 2.936822291 | G42: 0.9789407637 | H42: 0.2709424384 | I42: 0.7079983252 | J42: 0.05339707761 | K42: 0.03710496797 | L42: 3.459637811 | M42: 0.08671427948 | P42: 2.963588757 | Q42: 0.02683660195
A43: 30 | B43: 1.77584469 | C43: 1.334503877 | D43: 14.25512025 | E43: 4.05974392 | F43: 3.04480794 | G43: 1.01493598 | H43: 0.2851024049 | I43: 0.7298335751 | J43: 0.05226189957 | K43: 0.0367695551 | L43: 3.511334835 | M43: 0.085437594 | P43: 3.042137225 | Q43: 0.02650451
A44: 31 | B44: 1.811361584 | C44: 1.347848915 | D44: 14.98495382 | E44: 4.207741769 | F44: 3.155806327 | G44: 1.051935442 | H44: 0.2996990764 | I44: 0.7522363658 | J44: 0.051197995 | K44: 0.03645497151 | L44: 3.561281715 | M44: 0.08423933405 | P44: 3.121820051 | Q44: 0.0261930411
A45: 32 | B45: 1.847588816 | C45: 1.361327404 | D45: 15.73719019 | E45: 4.359891648 | F45: 3.269918736 | G45: 1.089972912 | H45: 0.3147438037 | I45: 0.7752291083 | J45: 0.05019944504 | K45: 0.03615950966 | L45: 3.609536992 | M45: 0.08311315291 | P45: 3.202676765 | Q45: 0.02590050462
A46: 33 | B46: 1.884540592 | C46: 1.374940679 | D46: 16.5124193 | E46: 4.516331717 | F46: 3.387248788 | G46: 1.129082929 | H46: 0.3302483859 | I46: 0.7988345433 | J46: 0.04926096076 | K46: 0.03588164138 | L46: 3.656157327 | M46: 0.08205336182 | P46: 3.284746598 | Q46: 0.02562538751
A47: 34 | B47: 1.922231404 | C47: 1.388690085 | D47: 17.31125384 | E47: 4.67720343 | F47: 3.507902572 | G47: 1.169300857 | H47: 0.3462250768 | I47: 0.8230757806 | J47: 0.04837780152 | K47: 0.03561999492 | L47: 3.701197542 | M47: 0.08105484686 | P47: 3.36806857 | Q47: 0.0253663316
A48: 35 | B48: 1.960676032 | C48: 1.402576986 | D48: 18.13432962 | E48: 4.842651715 | F48: 3.631988786 | G48: 1.210662929 | H48: 0.3626865924 | I48: 0.8479763364 | J48: 0.04754570572 | K48: 0.0353733354 | L48: 3.744710685 | M48: 0.08011299811 | P48: 3.452681573 | Q48: 0.02512211425
A49: 36 | B49: 1.999889553 | C49: 1.416602756 | D49: 18.98230596 | E49: 5.012825151 | F49: 3.759618863 | G49: 1.253206288 | H49: 0.3796461191 | I49: 0.8735601687 | J49: 0.04676083176 | K49: 0.0351405482 | L49: 3.786748068 | M49: 0.07922364906 | P49: 3.538624452 | Q49: 0.02489163188
A50: 37 | B50: 2.039887344 | C50: 1.430768784 | D50: 19.85586612 | E50: 5.187876137 | F50: 3.890907102 | G50: 1.296969034 | H50: 0.3971173225 | I50: 0.8998517117 | J50: 0.04601970755 | K50: 0.03492062464 | L50: 3.827359328 | M50: 0.0783830245 | P50: 3.625936067 | Q50: 0.02467388578
A51: 38 | B51: 2.080685091 | C51: 1.445076471 | D51: 20.75571784 | E51: 5.367961063 | F51: 4.025970798 | G51: 1.341990266 | H51: 0.4151143567 | I51: 0.9268759091 | J51: 0.04531918709 | K51: 0.03471264966 | L51: 3.866592472 | M51: 0.07758769568 | P51: 3.714655362 | Q51: 0.02446796996
A52: 39 | B52: 2.122298792 | C52: 1.459527236 | D52: 21.68259375 | E52: 5.553240487 | F52: 4.164930365 | G52: 1.388310122 | H52: 0.4336518749 | I52: 0.9546582468 | J52: 0.04465641306 | K52: 0.03451579126 | L52: 3.904493925 | M52: 0.07683454137 | P52: 3.804821417 | Q52: 0.02427306065
A53: 40 | B53: 2.164744768 | C53: 1.474122509 | D53: 22.63725199 | E53: 5.743879297 | F53: 4.307909473 | G53: 1.435969824 | H53: 0.4527450398 | I53: 0.9832247844 | J53: 0.04402878447 | K53: 0.0343292912 | L53: 3.941108582 | M53: 0.07612071419 | P53: 3.896473505 | Q53: 0.02408840713
A54: 41 | B54: 2.208039664 | C54: 1.488863734 | D54: 23.62047678 | E54: 5.940046888 | F54: 4.455035166 | G54: 1.485011722 | H54: 0.4724095355 | I54: 1.012602186 | J54: 0.0434339285 | K54: 0.03415245708 | L54: 3.976479853 | M54: 0.0754436112 | P54: 3.989651137 | Q54: 0.02391332384
A55: 42 | B55: 2.252200457 | C55: 1.503752371 | D55: 24.63307896 | E55: 6.141917334 | F55: 4.606438 | G55: 1.535479333 | H55: 0.4926615793 | I55: 1.042817754 | J55: 0.042869676 | K55: 0.0339846553 | L55: 4.010649708 | M55: 0.0748008482 | P55: 4.084394115 | Q55: 0.02374718346
A56: 43 | B56: 2.297244466 | C56: 1.518789895 | D56: 25.67589672 | E56: 6.349669561 | F56: 4.76225217 | G56: 1.58741739 | H56: 0.5135179343 | I56: 1.073899456 | J56: 0.04233404017 | K56: 0.03382530495 | L56: 4.043658725 | M56: 0.07419023722 | P56: 4.180742566 | Q56: 0.02358941084
A57: 44 | B57: 2.343189355 | C57: 1.533977794 | D57: 26.74979617 | E57: 6.563487524 | F57: 4.922615643 | G57: 1.640871881 | H57: 0.5349959235 | I57: 1.105875957 | J57: 0.04182519768 | K57: 0.03367387245 | L57: 4.07554613 | M57: 0.07360976676 | P57: 4.278736988 | Q57: 0.02343947768
A58: 45 | B58: 2.390053142 | C58: 1.549317572 | D58: 27.85567213 | E58: 6.783560386 | F58: 5.08767029 | G58: 1.695890097 | H58: 0.5571134426 | I58: 1.138776654 | J58: 0.0413414723 | K58: 0.03352986685 | L58: 4.106349843 | M58: 0.07305758434 | P58: 4.378418286 | Q58: 0.02329689787
A59: 46 | B59: 2.437854205 | C59: 1.564810747 | D59: 28.99444878 | E59: 7.010082703 | F59: 5.257562027 | G59: 1.752520676 | H59: 0.5798889757 | I59: 1.1726317 | J59: 0.04088132028 | K59: 0.03339283559 | L59: 4.136106522 | M59: 0.07253198109 | P59: 4.47982781 | Q59: 0.02316122336
A60: 47 | B60: 2.486611289 | C60: 1.580458855 | D60: 30.16708048 | E60: 7.243254604 | F60: 5.432440953 | G60: 1.810813651 | H60: 0.6033416097 | I60: 1.207472041 | J60: 0.04044331757 | K60: 0.03326236091 | L60: 4.164851594 | M60: 0.07203137812 | P60: 4.583007386 | Q60: 0.0230320405
A61: 48 | B61: 2.536343515 | C61: 1.596263443 | D61: 31.37455253 | E61: 7.483281984 | F61: 5.612461488 | G61: 1.870820496 | H61: 0.6274910505 | I61: 1.243329446 | J61: 0.04002614843 | K61: 0.03313805649 | L61: 4.192619307 | M61: 0.07155431439 | P61: 4.68799935 | Q61: 0.02290896682
A62: 49 | B62: 2.587070385 | C62: 1.612226078 | D62: 32.61788197 | E62: 7.730376697 | F62: 5.797782523 | G62: 1.932594174 | H62: 0.6523576394 | I62: 1.280236535 | J62: 0.03962859532 | K62: 0.0330195646 | L62: 4.219442758 | M62: 0.07109943592 | P62: 4.794846581 | Q62: 0.02279164812
A63: 50 | B63: 2.638811793 | C63: 1.628348338 | D63: 33.89811851 | E63: 7.984756751 | F63: 5.988567563 | G63: 1.996189188 | H63: 0.6779623701 | I63: 1.318226818 | J63: 0.03924952993 | K63: 0.03290655349 | L63: 4.245353937 | M63: 0.0706654862 | P63: 4.903592532 | Q63: 0.02267975593
A64: 51 | B64: 2.691588029 | C64: 1.644631822 | D64: 35.21634532 | E64: 8.246646513 | F64: 6.184984885 | G64: 2.061661628 | H64: 0.7043269065 | I64: 1.357334722 | J64: 0.03888790516 | K64: 0.03279871507 | L64: 4.270383758 | M64: 0.07025129755 | P64: 5.014281253 | Q64: 0.02257298521
A65: 52 | B65: 2.74541979 | C65: 1.66107814 | D65: 36.57368005 | E65: 8.516276911 | F65: 6.387207684 | G65: 2.129069228 | H65: 0.7314736009 | I65: 1.397595627 | J65: 0.03854274796 | K65: 0.03269576285 | L65: 4.294562099 | M65: 0.06985578346 | P65: 5.12695743 | Q65: 0.02247105232
A66: 53 | B66: 2.800328185 | C66: 1.677688921 | D66: 37.97127567 | E66: 8.793885653 | F66: 6.59541424 | G66: 2.198471413 | H66: 0.7594255134 | I66: 1.4390459 | J66: 0.03821315288 | K66: 0.03259743009 | L66: 4.317917832 | M66: 0.06947793165 | P66: 5.241666402 | Q66: 0.02237369316
A67: 54 | B67: 2.856334749 | C67: 1.694465811 | D67: 39.41032157 | E67: 9.079717435 | F67: 6.809788076 | G67: 2.269929359 | H67: 0.7882064314 | I67: 1.481722927 | J67: 0.03789827637 | K67: 0.03250346811 | L67: 4.340478859 | M67: 0.06911679788 | P67: 5.358454197 | Q67: 0.0222806615
A68: 55 | B68: 2.913461444 | C68: 1.711410469 | D68: 40.8920445 | E68: 9.374024171 | F68: 7.030518128 | G68: 2.343506043 | H68: 0.81784089 | I68: 1.525665153 | J68: 0.03759733156 | K68: 0.03241364483 | L68: 4.362272142 | M68: 0.06877150032 | P68: 5.477367552 | Q68: 0.02219172756
A69: 56 | B69: 2.971730673 | C69: 1.728524573 | D69: 42.41770965 | E69: 9.677065218 | F69: 7.257798914 | G69: 2.419266305 | H69: 0.848354193 | I69: 1.570912112 | J69: 0.0373095836 | K69: 0.03232774337 | L69: 4.383323734 | M69: 0.06844121451 | P69: 5.598453946 | Q69: 0.0221066766
A70: 57 | B70: 3.031165286 | C70: 1.745809819 | D70: 43.98862176 | E70: 9.989107614 | F70: 7.49183071 | G70: 2.497276903 | H70: 0.8797724353 | I70: 1.617504468 | J70: 0.03703434543 | K70: 0.03224556085 | L70: 4.403658812 | M70: 0.06812516883 | P70: 5.721761617 | Q70: 0.02202530777
A71: 58 | B71: 3.091788592 | C71: 1.763267917 | D71: 45.60612623 | E71: 10.31042631 | F71: 7.732819734 | G71: 2.577606578 | H71: 0.9121225246 | I71: 1.665484053 | J71: 0.03677097402 | K71: 0.03216690729 | L71: 4.4233017 | M71: 0.06782264027 | P71: 5.847339596 | Q71: 0.02194743296
A72: 59 | B72: 3.153624364 | C72: 1.780900597 | D72: 47.27161029 | E72: 10.64130444 | F72: 7.980978328 | G72: 2.660326109 | H72: 0.9454322057 | I72: 1.714893903 | J72: 0.03651886689 | K72: 0.03209160461 | L72: 4.442275904 | M72: 0.06753295079 | P72: 5.975237729 | Q72: 0.02187287585
A73: 60 | B73: 3.216696851 | C73: 1.798709603 | D73: 48.98650419 | E73: 10.98203353 | F73: 8.236525149 | G73: 2.745508383 | H73: 0.9797300838 | I73: 1.765778299 | J73: 0.03627745899 | K73: 0.03201948569 | L73: 4.460604135 | M73: 0.06725546381 | P73: 6.105506701 | Q73: 0.02180147098
A74: 61 | B74: 3.281030788 | C74: 1.816696699 | D74: 50.75228249 | E74: 11.33291383 | F74: 8.499685369 | G74: 2.833228456 | H74: 1.01504565 | I74: 1.818182807 | J74: 0.03604621984 | K74: 0.03195039359 | L74: 4.478308339 | M74: 0.06698958118 | P74: 6.238198063 | Q74: 0.02173306296
A75: 62 | B75: 3.346651404 | C75: 1.834863666 | D75: 52.57046529 | E75: 11.6942545 | F75: 8.770690874 | G75: 2.923563625 | H75: 1.051409306 | I75: 1.872154319 | J75: 0.03582465098 | K75: 0.03188418076 | L75: 4.495409716 | M75: 0.06673474031 | P75: 6.373364255 | Q75: 0.0216675057
A76: 63 | B76: 3.413584432 | C76: 1.853212302 | D76: 54.44261961 | E76: 12.06637396 | F76: 9.04978047 | G76: 3.01659349 | H76: 1.088852392 | I76: 1.927741098 | J76: 0.03561228359 | K76: 0.03182070835 | L76: 4.511928753 | M76: 0.06649041163 | P76: 6.511058634 | Q76: 0.02160466174
A77: 64 | B77: 3.481856121 | C77: 1.871744425 | D77: 56.37036071 | E77: 12.44960013 | F77: 9.337200101 | G77: 3.112400034 | H77: 1.127407214 | I77: 1.984992819 | J77: 0.03540867636 | K77: 0.03175984563 | L77: 4.527885241 | M77: 0.06625609617 | P77: 6.651335496 | Q77: 0.02154440161
A78: 65 | B78: 3.551493243 | C78: 1.890461869 | D78: 58.35535353 | E78: =(B78*C78)^(1-alpha)*(D78^alpha) -> 12.84427075 | F78: =(1-s)*E78 -> 9.633203064 | G78: =s*E78 -> 3.211067688 | H78: =dep*D78 -> 1.167107071 | I78: 2.043960617 | J78: 0.03521341348 | K78: 0.03170146935 | L78: 4.543298305 | M78: 0.06603132348 | P78: 6.794250103 | Q78: 0.02148660331
A79: 66 | B79: =(1+g)*B78 -> 3.622523108 | C79: =(1+n)*C78 -> 1.909366488 | D79: 60.39931415 | E79: 13.25073365 | F79: 9.938050237 | G79: 3.312683412 | H79: 1.207986283 | I79: 2.10469713 | J79: 0.0350261029 | K79: 0.03164546326 | L79: 4.558186418 | M79: 0.06581564958 | P79: 6.939858708 | Q79: 0.02143115174
A80: 67 | B80: 3.69497357 | C80: 1.928460153 | D80: 62.50401128 | E80: 13.66934709 | F80: 10.25201031 | G80: 3.417336771 | H80: 1.250080226 | I80: 2.167256546 | J80: 0.03484637465 | K80: 0.03159171763 | L80: 4.57256743 | M80: 0.06560865522 | P80: 7.088218579 | Q80: =(P80-P79)/P79 -> 0.02137793825
A81: 68 | B81: 3.768873042 | C81: 1.947744755 | D81: 64.67126782 | E81: 14.10048005 | F81: 10.57536004 | G81: 3.525120013 | H81: 1.293425356 | I81: 2.231694657 | J81: 0.03467387935 | K81: 0.03154012878 | L81: 4.586458587 | M81: 0.06540994414 | P81: 7.239388026 | Q81: 0.02132686018
A82: 69 | B82: 3.844250503 | C82: 1.967222202 | D82: 66.90296248 | E82: 14.54451261 | F82: 10.90838446 | G82: 3.636128153 | H82: 1.33805925 | I82: 2.298068903 | J82: 0.03450828679 | K82: 0.0314905987 | L82: 4.599876549 | M82: 0.0652191416 | P82: 7.393426424 | Q82: 0.02127782049
A83: 70 | B83: 3.921135513 | C83: 1.986894424 | D83: 69.20103138 | E83: 15.00183623 | F83: 11.25137717 | G83: 3.750459057 | H83: 1.384020628 | I83: 2.366438429 | J83: 0.03434928467 | K83: 0.03144303465 | L83: 4.612837411 | M83: 0.06503589293 | P83: 7.550394245 | Q83: 0.02123072738
A84: 71 | B84: 3.999558223 | C84: 2.006763368 | D84: =D83+I83 -> 71.56746981 | E84: 15.47285411 | F84: 11.60464058 | G84: 3.868213528 | H84: 1.431349396 | I84: =G84-H84 -> 2.436864132 | J84: =(D84-D83)/D83 -> 0.03419657744 | K84: =(E84-E83)/E83 -> 0.03139734884 | L84: =D84/E84 -> 4.625356725 | M84: =alpha/L84 -> 0.06485986225 | P84: =E84/C84 -> 7.710353077 | Q84: 0.0211854939
A85: 72 | B85: 4.079549387 | C85: 2.026831002 | D85: 74.00433394 | E85: 15.95798159 | F85: 11.9684862 | G85: 3.989495399 | H85: 1.480086679 | I85: 2.50940872 | J85: 0.03404988521 | K85: 0.0313534581 | L85: 4.637449511 | M85: 0.06469073125 | P85: 7.873365652 | Q85: 0.02114203773
A86: 73 | B86: 4.161140375 | C86: 2.047099312 | D86: 76.51374266 | E86: 16.45764648 | F86: 12.34323486 | G86: 4.11441162 | H86: 1.530274853 | I86: 2.584136767 | J86: 0.03390894271 | K86: 0.0313112836 | L86: 4.649130284 | M86: 0.06452819811 | P86: 8.039495878 | Q86: 0.02110028079
A87: 74 | B87: 4.244363183 | C87: 2.067570305 | D87: 79.09787943 | E87: 16.97228944 | F87: 12.72921708 | G87: 4.24307236 | H87: 1.581957589 | I87: 2.661114771 | J87: 0.03377349842 | K87: 0.03127075055 | L87: 4.660413064 | M87: 0.06437197645 | P87: 8.20880886 | Q87: 0.02106014906
A88: 75 | B88: 4.329250446 | C88: 2.088246008 | D88: 81.7589942 | E88: 17.50236438 | F88: 13.12677329 | G88: 4.375591096 | H88: 1.635179884 | I88: 2.740411212 | J88: 0.03364331371 | K88: 0.03123178797 | L88: 4.671311396 | M88: 0.06422179439 | P88: 8.381370928 | Q88: 0.02102157224
A89: 76 | B89: 4.415835455 | C89: 2.109128468 | D89: 84.49940541 | E89: 18.04833889 | F89: 13.53625417 | G89: 4.512084722 | H89: 1.689988108 | I89: 2.822096614 | J89: 0.03351816199 | K89: 0.03119432846 | L89: 4.681838364 | M89: 0.06407739368 | P89: 8.557249669 | Q89: 0.02098448362
A90: 77 | B90: 4.504152164 | C90: 2.130219753 | D90: 87.32150203 | E90: 18.61069459 | F90: 13.95802094 | G90: 4.652673647 | H90: 1.746430041 | I90: 2.906243607 | J90: 0.03339782807 | K90: 0.03115830798 | L90: 4.69200661 | M90: 0.06393852885 | P90: 8.73651395 | Q90: 0.02094881979
A91: 78 | B91: 4.594235208 | C91: 2.151521951 | D91: 90.22774564 | E91: 19.18992763 | F91: 14.39244572 | G91: 4.797481906 | H91: 1.804554913 | I91: 2.992926994 | J91: 0.03328210738 | K91: 0.03112366566 | L91: 4.701828344 | M91: 0.0638049665 | P91: 8.91923395 | Q91: 0.02091452045
A92: 79 | B92: 4.686119912 | C92: 2.17303717 | D92: 93.22067263 | E92: 19.78654907 | F92: 14.8399118 | G92: 4.946637267 | H92: 1.864413453 | I92: 3.082223815 | J92: 0.03317080542 | K92: 0.03109034356 | L92: 4.711315364 | M92: 0.06367648455 | P92: 9.105481186 | Q92: 0.02088152828
A93: 80 | B93: 4.77984231 | C93: 2.194767542 | D93: 96.30289644 | E93: 20.40108538 | F93: 15.30081404 | G93: 5.100271345 | H93: 1.926057929 | I93: 3.174213416 | J93: 0.03306373713 | K93: 0.03105828659 | L93: 4.720479065 | M93: 0.06355287162 | P93: 9.295328545 | Q93: 0.0208497887
A94: 81 | B94: 4.875439156 | C94: 2.216715217 | D94: 99.47710986 | E94: 21.03407888 | F94: 15.77555916 | G94: 5.25851972 | H94: 1.989542197 | I94: 3.268977523 | J94: 0.03296072635 | K94: 0.03102744227 | L94: 4.729330456 | M94: 0.06343392638 | P94: 9.488850312 | Q94: 0.02081924977
A95: 82 | B95: 4.972947939 | C95: 2.238882369 | D95: 102.7460874 | E95: 21.68608822 | F95: 16.26456617 | G95: 5.421522055 | H95: 2.054921748 | I95: 3.366600308 | J95: 0.03286160532 | K95: 0.03099776062 | L95: 4.737880172 | M95: 0.06331945704 | P95: 9.6861222 | Q95: 0.020789862
A96: 83 | B96: 5.072406898 | C96: 2.261271193 | D96: 106.1126877 | E96: 22.35768889 | F96: 16.76826667 | G96: 5.589422224 | H96: 2.122253754 | I96: 3.46716847 | J96: 0.0327662142 | K96: 0.030969194 | L96: 4.746138485 | M96: 0.06320928076 | P96: 9.887221384 | Q96: 0.02076157822
A97: 84 | B97: 5.173855036 | C97: 2.283883905 | D97: 109.5798562 | E97: 23.04947373 | F97: 17.2871053 | G97: 5.762368433 | H97: 2.191597123 | I97: 3.570771309 | J97: 0.03267440063 | K97: 0.030941697 | L97: 4.754115319 | M97: 0.06310322318 | P97: 10.09222653 | Q97: 0.02073435347
A98: 85 | B98: 5.277332137 | C98: 2.306722744 | D98: 113.1506275 | E98: 23.76205343 | F98: 17.82154007 | G98: 5.940513357 | H98: 2.263012549 | I98: 3.677500807 | J98: 0.03258601931 | K98: 0.0309152263 | L98: 4.761820262 | M98: 0.06300111796 | P98: 10.30121782 | Q98: 0.02070814486
A99: 86 | B99: 5.382878779 | C99: 2.329789971 | D99: 116.8281283 | E99: 24.49605709 | F99: 18.37204282 | G99: 6.124014273 | H99: 2.336562566 | I99: 3.787451708 | J99: 0.03250093163 | K99: 0.03088974057 | L99: 4.769262573 | M99: 0.06290280634 | P99: 10.51427699 | Q99: 0.02068291145
A100: 87 | B100: 5.490536355 | C100: 2.353087871 | D100: 120.61558 | E100: 25.2521328 | F100: 18.9390996 | G100: 6.3130332 | H100: 2.4123116 | I100: 3.900721601 | J100: 0.03241900528 | K100: 0.03086520033 | L100: 4.776451198 | M100: 0.06280813674 | P100: 10.73148738 | Q100: 0.02065861419
A101: 88 | B101: 5.600347082 | C101: 2.37661875 | D101: 124.5163016 | E101: 26.03094817 | F101: 19.52321113 | G101: 6.507737043 | H101: 2.490326032 | I101: 4.017411011 | J101: 0.03234011395 | K101: 0.03084156792 | L101: 4.783394779 | M101: 0.06271696438 | P101: 10.95293394 | Q101: 0.02063521576
A102: 89 | B102: 5.712354024 | C102: 2.400384937 | D102: 128.5337126 | E102: 26.83319095 | F102: 20.12489321 | G102: 6.708297737 | H102: 2.570674252 | I102: 4.137623485 | J102: 0.03226413698 | K102: 0.03081880733 | L102: 4.790101664 | M102: 0.06262915092 | P102: 11.17870327 | Q102: 0.02061268053
A103: 90 | B103: 5.826601104 | C103: 2.424388787 | D103: 132.6713361 | E103: 27.65956962 | F103: 20.74467722 | G103: 6.914892405 | H103: 2.653426722 | I103: 4.261465684 | J103: 0.0321909591 | K103: 0.03079688416 | L103: 4.796579914 | M103: 0.06254456412 | P103: 11.40888366 | Q103: 0.02059097442
A104: 91 | B104: 5.943133126 | C104: 2.448632675 | D104: 136.9328018 | E104: 28.51081405 | F104: 21.38311054 | G104: 7.127703512 | H104: 2.738656035 | I104: 4.389047477 | J104: 0.0321204701 | K104: 0.03077576552 | L104: 4.802837321 | M104: 0.06246307754 | P104: 11.64356514 | Q104: 0.02057006487
A105: 92 | B105: 6.061995789 | C105: 2.473119001 | D105: 141.3218492 | E105: 29.38767611 | F105: 22.04075708 | G105: 7.346919027 | H105: 2.826436985 | I105: 4.520482042 | J105: 0.03205256462 | K105: 0.03075541995 | L105: 4.808881407 | M105: 0.06238457025 | P105: 11.88283948 | Q105: 0.02054992074
A106: 93 | B106: 6.183235705 | C106: 2.497850191 | D106: 145.8423313 | E106: 30.29093035 | F106: 22.71819777 | G106: 7.572732588 | H106: 2.916846626 | I106: 4.655885963 | J106: 0.03198714188 | K106: 0.03073581736 | L106: 4.814719442 | M106: 0.06230892654 | P106: 12.12680026 | Q106: 0.02053051223
A107: 94 | B107: 6.306900419 | C107: 2.522828693 | D107: 150.4982172 | E107: 31.22137471 | F107: 23.41603103 | G107: 7.805343677 | H107: 3.009964345 | I107: 4.795379332 | J107: 0.03192410545 | K107: 0.03071692895 | L107: 4.820358445 | M107: 0.06223603564 | P107: 12.37554289 | Q107: 0.02051181085
A108: 95 | B108: 6.433038427 | C108: 2.54805698 | D108: 155.2935966 | E108: 32.17983117 | F108: 24.13487338 | G108: 8.044957793 | H108: 3.105871932 | I108: 4.939085862 | J108: 0.03186336304 | K108: 0.03069872717 | L108: 4.825805199 | M108: 0.06216579154 | P108: 12.62916466 | Q108: 0.02049378928
A109: 96 | B109: 6.561699196 | C109: 2.57353755 | D109: 160.2326824 | E109: 33.16714655 | F109: 24.87535991 | G109: 8.291786637 | H109: 3.204653649 | I109: 5.087132988 | J109: 0.03180482628 | K109: 0.03068118562 | L109: 4.831066254 | M109: 0.06209809268 | P109: 12.88776476 | Q109: 0.02047642141
A110: 97 | B110: 6.69293318 | C110: 2.599272926 | D110: 165.3198154 | E110: 34.18419318 | F110: 25.63814489 | G110: 8.546048296 | H110: 3.306396309 | I110: 5.239651987 | J110: 0.03174841056 | K110: 0.03066427901 | L110: 4.83614794 | M110: 0.06203284179 | P110: 13.15144433 | Q110: 0.02045968219
A111: 98 | B111: 6.826791843 | C111: 2.625265655 | D111: 170.5594674 | E111: 35.23186976 | F111: 26.42390232 | G111: 8.80796744 | H111: 3.411189348 | I111: 5.396778091 | J111: 0.03169403482 | K111: 0.03064798313 | L111: 4.841056367 | M111: 0.06196994566 | P111: 13.42030651 | Q111: 0.02044354765
A112: 99 | B112: 6.96332768 | C112: 2.651518311 | D112: 175.9562455 | E112: 36.31110207 | F112: 27.23332656 | G112: 9.077775518 | H112: 3.51912491 | I112: 5.558650608 | J112: 0.03164162138 | K112: 0.03063227476 | L112: 4.845797441 | M112: 0.06190931496 | P112: 13.69445646 | Q112: 0.02042799481
A113: 100 | B113: 7.102594234 | C113: 2.678033494 | D113: 181.5148961 | E113: 37.42284387 | F113: 28.0671329 | G113: 9.355710967 | H113: 3.630297922 | I113: 5.725413044 | J113: 0.0315910958 | K113: 0.03061713166 | L113: 4.850376865 | M113: 0.06185086403 | P113: 13.97400142 | Q113: 0.02041300164
A114: 101 | B114: 7.244646118 | C114: 2.704813829 | D114: 187.2403092 | E114: 38.56807766 | F114: 28.92605825 | G114: 9.642019415 | H114: 3.744806183 | I114: 5.897213232 | J114: 0.0315423867 | K114: 0.03060253248 | L114: 4.854800149 | M114: 0.06179451076 | P114: 14.25905075 | Q114: 0.02039854701
A115: 102 | B115: 7.389539041 | C115: 2.731861968 | D115: 193.1375224 | E115: 39.74781564 | F115: 29.81086173 | G115: 9.936953909 | H115: 3.862750448 | I115: 6.074203462 | J115: 0.03149542563 | K115: 0.03058845677 | L115: 4.859072613 | M115: 0.06174017635 | P115: 14.54971595 | Q115: 0.02038461067
A116: 103 | B116: 7.537329821 | C116: 2.759180587 | D116: 199.2117259 | E116: 40.96310053 | F116: 30.72232539 | G116: 10.24077513 | H116: 3.984234517 | I116: 6.256540614 | J116: 0.03145014695 | K116: 0.03057488491 | L116: 4.863199399 | M116: 0.06168778522 | P116: 14.84611073 | Q116: 0.02037117317
A117: 104 | B117: 7.688076418 | C117: 2.786772393 | D117: 205.4682665 | E117: 42.21500653 | F117: 31.6612549 | G117: 10.55375163 | H117: 4.109365329 | I117: 6.444386304 | J117: 0.03140648768 | K117: 0.03056179804 | L117: 4.867185471 | M117: 0.06163726485 | P117: 15.14835106 | Q117: 0.02035821589
A118: 105 | B118: 7.841837946 | C118: 2.814640117 | D118: 211.9126528 | E118: 43.50464029 | F118: 32.62848021 | G118: 10.87616007 | H118: 4.238253055 | I118: 6.637907016 | J118: 0.03136438738 | K118: 0.03054917812 | L118: 4.871035627 | M118: 0.06158854563 | P118: 15.45655518 | Q118: 0.02034572091
A119: 106 | B119: 7.998674705 | C119: 2.842786518 | D119: 218.5505598 | E119: 44.83314182 | F119: 33.62485637 | G119: 11.20828546 | H119: 4.371011196 | I119: 6.83727426 | J119: 0.03132378803 | K119: 0.03053700777 | L119: 4.874754498 | M119: 0.06154156073 | P119: 15.77084369 | Q119: 0.02033367106
A120: 107 | B120: 8.158648199 | C120: 2.871214384 | D120: 225.387834 | E120: 46.2016856 | F120: 34.6512642 | G120: 11.5504214 | H120: 4.507756681 | I120: 7.042664719 | J120: 0.03128463394 | K120: 0.03052527035 | L120: 4.878346561 | M120: 0.06149624596 | P120: 16.09133956 | Q120: 0.02032204985
A121: 108 | B121: 8.321821163 | C121: 2.899926527 | D121: 232.4304988 | E121: 47.61148152 | F121: 35.70861114 | G121: 11.90287038 | H121: 4.648609975 | I121: 7.254260404 | J121: 0.03124687164 | K121: 0.03051394985 | L121: 4.881816137 | M121: 0.06145253971 | P121: 16.41816821 | Q121: 0.02031084144
A122: 109 | B122: 8.488257586 | C122: 2.928925793 | D122: 239.6847592 | E122: 49.06377601 | F122: 36.79783201 | G122: 12.265944 | H122: 4.793695183 | I122: 7.472248819 | J122: 0.03121044976 | K122: 0.03050303092 | L122: 4.885167402 | M122: 0.06141038276 | P122: 16.75145752 | Q122: 0.02030003062
A123: 110 | B123: 8.658022738 | C123: 2.958215051 | D123: 247.157008 | E123: 50.55985314 | F123: 37.91988985 | G123: 12.63996328 | H123: 4.94314016 | I123: 7.696823125 | J123: 0.03117531897 | K123: 0.03049249879 | L123: 4.888404389 | M123: 0.06136971824 | P123: 17.09133794 | Q123: 0.02028960276
A124: 111 | B124: 8.831183193 | C124: 2.987797201 | D124: 254.8538311 | E124: 52.10103574 | F124: 39.0757768 | G124: 13.02525893 | H124: 5.097076622 | I124: 7.928182312 | J124: 0.03114143187 | K124: 0.03048233927 | L124: 4.891530994 | M124: 0.06133049149 | P124: 17.43794248 | Q124: 0.02027954384
A125: 112 | B125: 9.007806857 | C125: 3.017675173 | D125: 262.7820134 | E125: 53.68868657 | F125: 40.26651493 | G125: 13.42217164 | H125: 5.255640269 | I125: 8.166531373 | J125: 0.03110874291 | K125: 0.03047253875 | L125: 4.89455098 | M125: 0.06129264998 | P125: 17.79140679 | Q125: 0.02026984034
A126: 113 | B126: 9.187962994 | C126: 3.047851925 | D126: 270.9485448 | E126: 55.32420954 | F126: 41.49315716 | G126: 13.83105239 | H126: 5.418970896 | I126: 8.412081489 | J126: 0.03107720832 | K126: 0.0304630841 | L126: 4.897467981 | M126: 0.06125614321 | P126: 18.15186922 | Q126: 0.02026047931
A127: 114 | B127: 9.371722254 | C127: 3.078330444 | D127: 279.3606263 | E127: 57.00905096 | F127: 42.75678822 | G127: 14.25226274 | H127: 5.587212526 | I127: 8.665050214 | J127: 0.03104678601 | K127: 0.03045396275 | L127: 4.900285509 | M127: 0.06122092263 | P127: 18.51947086 | Q127: 0.02025144827
A128: 115 | B128: 9.559156699 | C128: 3.109113749 | D128: 288.0256765 | E128: 58.74470078 | F128: 44.05852559 | G128: 14.6861752 | H128: 5.76051353 | I128: 8.925661666 | J128: 0.03101743552 | K128: 0.03044516258 | L128: 4.903006955 | M128: 0.06118694156 | P128: 18.89435561 | Q128: 0.02024273523
A129: 116 | B129: 9.750339833 | C129: 3.140204886 | D129: 296.9513382 | E129: 60.53269397 | F129: 45.39952048 | G129: 15.13317349 | H129: 5.939026763 | I129: 9.194146729 | J129: 0.03098911796 | K129: 0.03043667195 | L129: 4.905635594 | M129: 0.0611541551 | P129: 19.27667021 | Q129: 0.02023432866
A130: 117 | B130: 9.94534663 | C130: 3.171606935 | D130: 306.1454849 | E130: 62.37461182 | F130: 46.78095886 | G130: 15.59365295 | H130: 6.122909698 | I130: 9.470743256 | J130: 0.03096179592 | K130: 0.03042847965 | L130: 4.908174592 | M130: 0.06112252007 | P130: 19.66656433 | Q130: 0.02022621748
A131: 118 | B131: 10.14425356 | C131: 3.203323004 | D131: 315.6162282 | E131: 64.27208337 | F131: 48.20406253 | G131: 16.06802084 | H131: 6.312324563 | I131: 9.755696279 | J131: 0.03093543339 | K131: 0.03042057491 | L131: 4.910627003 | M131: 0.06109199493 | P131: 20.06419062 | Q131: 0.020218391
A132: 119 | B132: 10.34713863 | C132: 3.235356234 | D132: 325.3719244 | E132: 66.22678686 | F132: 49.67009014 | G132: 16.55669671 | H132: 6.507438489 | I132: 10.04925823 | J132: 0.03090999578 | K132: 0.03041294737 | L132: 4.912995781 | M132: 0.06106253971 | P132: 20.46970474 | Q132: 0.02021083898
A133: 120 | B133: 10.55408141 | C133: 3.267709797 | D133: 335.4211827 | E133: 68.24045119 | F133: 51.18033839 | G133: 17.0601128 | H133: 6.708423653 | I133: 10.35168914 | J133: 0.03088544976 | K133: 0.03040558706 | L133: 4.915283777 | M133: 0.06103411596 | P133: 20.88326548 | Q133: 0.02020355154
A134: 121 | B134: 10.76516303 | C134: 3.300386895 | D134: 345.7728718 | E134: 70.31485748 | F134: 52.73614311 | G134: 17.57871437 | H134: 6.915457436 | I134: 10.66325693 | J134: 0.0308617633 | K134: 0.03039848437 | L134: 4.917493745 | M134: 0.06100668665 | P134: 21.30503475 | Q134: 0.02019651918
A135: 122 | B135: 10.98046629 | C135: 3.333390764 | D135: 356.4361287 | E135: 72.45184062 | F135: 54.33888046 | G135: 18.11296015 | H135: 7.128722575 | I135: 10.98423758 | J135: 0.03083890555 | K135: 0.03039163007 | L135: 4.919628345 | M135: 0.06098021618 | P135: 21.73517771 | Q135: 0.02018973275
A136: 123 | B136: 11.20007562 | C136: 3.366724671 | D136: 367.4203663 | E136: 74.6532909 | F136: 55.98996818 | G136: 18.66332273 | H136: 7.348407326 | I136: 11.3149154 | J136: 0.03081684682 | K136: 0.03038501528 | L136: 4.921690148 | M136: 0.06095467025 | P136: 22.17386279 | Q136: 0.02018318344
A137: 124 | B137: 11.42407713 | C137: 3.400391918 | D137: 378.7352817 | E137: 76.92115571 | F137: 57.69086678 | G137: 19.23028893 | H137: 7.574705634 | I137: 11.65558329 | J137: 0.03079555854 | K137: 0.03037863142 | L137: 4.923681635 | M137: 0.06093001584 | P137: 22.62126177 | Q137: 0.02017686279
A138: 125 | B138: 11.65255868 | C138: 3.434395837 | D138: 390.390865 | E138: 79.25744122 | F138: 59.44308092 | G138: 19.81436031 | H138: 7.8078173 | I138: 12.00654301 | J138: 0.0307750132 | K138: 0.03037247027 | L138: 4.925605205 | M138: 0.06090622117 | P138: 23.07754988 | Q138: 0.02017076264
A139: 126 | B139: 11.88560985 | C139: 3.468739795 | D139: 402.397408 | E139: 81.66421421 | F139: 61.24816065 | G139: 20.41605355 | H139: 8.04794816 | I139: 12.36810539 | J139: 0.03075518431 | K139: 0.03036652389 | L139: 4.927463172 | M139: 0.06088325564 | P139: 23.54290579 | Q139: 0.02016487514
A140: 127 | B140: 12.12332205 | C140: 3.503427193 | D140: 414.7655134 | E140: 84.14360383 | F140: 63.10770287 | G140: 21.03590096 | H140: 8.295310268 | I140: 12.74059069 | J140: 0.03073604637 | K140: 0.03036078463 | L140: 4.929257775 | M140: 0.06086108978 | P140: 24.01751176 | Q140: 0.02015919271
A141: 128 | B141: 12.36578849 | C141: 3.538461465 | D141: 427.5061041 | E141: 86.69780355 | F141: 65.02335266 | G141: 21.67445089 | H141: 8.550122082 | I141: 13.12432881 | J141: 0.03071757481 | K141: 0.03035524515 | L141: 4.930991174 | M141: 0.06083969519 | P141: 24.50155368 | Q141: 0.02015370807
A142: 129 | B142: 12.61310426 | C142: 3.57384608 | D142: 440.6304329 | E142: =(B142*C142)^(1-alpha)*(D142^alpha) -> 89.32907307 | F142: =(1-s)*E142 -> 66.9968048 | G142: =s*E142 -> 22.33226827 | H142: =dep*D142 -> 8.812608658 | I142: 13.51965961 | J142: 0.03069974599 | K142: 0.03034989835 | L142: 4.932665455 | M142: 0.06081904453 | P142: 24.99522114 | Q142: 0.02014841421
A143: 130 | B143: =(1+g)*B142 -> 12.86536634 | C143: =(1+n)*C142 -> 3.609584541 | D143: 454.1500925 | E143: 92.03974034 | F143: 69.02980525 | G143: 23.00993508 | H143: 9.08300185 | I143: 13.92693323 | J143: 0.03068253711 | K143: 0.03034473741 | L143: 4.934282635 | M143: 0.06079911148 | P143: 25.49870748 | Q143: 0.02014330436
A144: 131 | B144: 13.12267367 | C144: 3.645680386 | D144: 468.0770257 | E144: 94.83220358 | F144: 71.12415268 | G144: 23.70805089 | H144: 9.361540515 | I144: 14.34651038 | J144: 0.03066592623 | K144: 0.03033975575 | L144: 4.935844661 | M144: 0.06077987064 | P144: 26.01220994 | Q144: =(P144-P143)/P143 -> 0.02013837203
A145: 132 | B145: 13.38512714 | C145: 3.68213719 | D145: 482.4235361 | E145: 97.70893345 | F145: 73.28170009 | G145: 24.42723336 | H145: 9.648470722 | I145: 14.77876264 | J145: 0.0306498922 | K145: 0.03033494704 | L145: 4.937353414 | M145: 0.06076129758 | P145: 26.53592965 | Q145: 0.02013361093
A146: 133 | B146: 13.65282969 | C146: 3.718958562 | D146: 497.2022988 | E146: 100.6724752 | F146: 75.50435642 | G146: 25.16811881 | H146: 9.944045975 | I146: 15.22407283 | J146: 0.03063441465 | K146: 0.03033030516 | L146: 4.938810709 | M146: 0.06074336873 | P146: 27.07007178 | Q146: 0.02012901501
A147: 134 | B147: 13.92588628 | C147: 3.756148148 | D147: 512.4263716 | E147: 103.725451 | F147: 77.79408826 | G147: 25.93136275 | H147: 10.24852743 | I147: 15.68283532 | J147: 0.03061947394 | K147: 0.03032582425 | L147: 4.940218303 | M147: 0.0607260614 | P147: 27.61484556 | Q147: 0.02012457847
A148: 135 | B148: 14.204404 | C148: 3.793709629 | D148: =D147+I147 -> 528.1092069 | E148: 106.8705621 | F148: 80.1529216 | G148: 26.71764053 | H148: 10.56218414 | I148: =G148-H148 -> 16.15545639 | J148: =(D148-D147)/D147 -> 0.03060505117 | K148: =(E148-E147)/E147 -> 0.03032149863 | L148: =D148/E148 -> 4.94157789 | M148: =alpha/L148 -> 0.06070935371 | P148: =E148/C148 -> 28.17046442 | Q148: 0.02012029567
A149: 136 | B149: 14.48849208 | C149: 3.831646725 | D149: 544.2646633 | E149: 110.1105915 | F149: 82.5829436 | G149: 27.52764787 | H149: 10.88529327 | I149: 16.6423546 | J149: 0.03059112809 | K149: 0.03031732284 | L149: 4.942891107 | M149: 0.06069322458 | P149: 28.73714603 | Q149: 0.02011616123
A150: 137 | B150: 14.77826193 | C150: 3.869963193 | D150: 560.9070179 | E150: 113.4484059 | F150: 85.08630445 | G150: 28.36210148 | H150: 11.21814036 | I150: 17.14396113 | J150: 0.03057768715 | K150: 0.03031329161 | L150: 4.944159535 | M150: 0.06067765368 | P150: 29.31511239 | Q150: 0.02011216991
A151: 138 | B151: 15.07382716 | C151: 3.908662824 | D151: 578.050979 | E151: 116.886959 | F151: 87.66521928 | G151: 29.22173976 | H151: 11.56101958 | I151: 17.66072018 | J151: 0.0305647114 | K151: 0.03030939987 | L151: 4.945384702 | M151: 0.06066262143 | P151: 29.90458995 | Q151: 0.0201083167
A152: 139 | B152: 15.37530371 | C152: 3.947749453 | D152: 595.7116992 | E152: 120.4292935 | F152: 90.32197009 | G152: 30.10732336 | H152: 11.91423398 | I152: 18.19308938 | J152: 0.03055218453 | K152: 0.03030564272 | L152: 4.946568083 | M152: 0.06064810895 | P152: 30.50580968 | Q152: 0.02010459675
A153: 140 | B153: 15.68280978 | C153: 3.987226947 | D153: 613.9047886 | E153: 124.0785438 | F153: 93.05890782 | G153: 31.01963594 | H153: 12.27809577 | I153: 18.74154017 | J153: 0.03054009079 | K153: 0.03030201545 | L153: 4.947711103 | M153: 0.06063409802 | P153: 31.11900712 | Q153: 0.0201010054
A154: 141 | B154: 15.99646598 | C154: 4.027099217 | D154: 632.6463288 | E154: 127.8379392 | F154: 95.8784544 | G154: 31.9594848 | H154: 12.65292658 | I154: 19.30655822 | J154: 0.03052841502 | K154: 0.03029851352 | L154: 4.948815138 | M154: 0.06062057111 | P154: 31.74442255 | Q154: 0.02009753813
A155: 142 | B155: 16.3163953 | C155: 4.067370209 | D155: 651.952887 | E155: 131.7108065 | F155: 98.78310488 | G155: 32.92770163 | H155: 13.03905774 | I155: 19.88864389 | J155: 0.03051714259 | K155: 0.03029513253 | L155: 4.949881519 | M155: 0.06060751128 | P155: 32.38230103 | Q155: 0.02009419062
A156: 143 | B156: 16.6427232 | C156: 4.108043911 | D156: 671.8415309 | E156: 135.7005729 | F156: 101.7754297 | G156: 33.92514323 | H156: 13.43683062 | I156: 20.48831261 | J156: 0.0305062594 | K156: 0.03029186826 | L156: 4.950911529 | M156: 0.06059490222 | P156: 33.0328925 | Q156: 0.02009095868
A157: 144 | B157: 16.97557767 | C157: 4.14912435 | D157: 692.3298435 | E157: 139.8107691 | F157: 104.8580768 | G157: 34.95269228 | H157: 13.84659687 | I157: 21.10609541 | J157: 0.03049575185 | K157: 0.03028871664 | L157: 4.951906408 | M157: 0.0605827282 | P157: 33.6964519 | Q157: 0.02008783826
A158: 145 | B158: 17.31508922 | C158: 4.190615594 | D158: 713.4359389 | E158: 144.0450324 | F158: 108.0337743 | G158: 36.01125811 | H158: 14.26871878 | I158: 21.74253933 | J158: 0.03048560683 | K158: 0.03028567374 | L158: 4.952867355 | M158: 0.06057097404 | P158: 34.37323926 | Q158: 0.02008482548
A159: 146 | B159: 17.66139101 | C159: 4.23252175 | D159: 735.1784782 | E159: 148.4071101 | F159: 111.3053326 | G159: 37.10177753 | H159: 14.70356956 | I159: 22.39820796 | J159: 0.0304758117 | K159: 0.03028273576 | L159: 4.953795527 | M159: 0.06055962511 | P159: 35.06351978 | Q159: 0.02008191659
A160: 147 | B160: 18.01461883 | C160: 4.274846967 | D160: 757.5766862 | E160: 152.9008624 | F160: 114.6756468 | G160: 38.2252156 | H160: 15.15153372 | I160: 23.07368188 | J160: 0.03046635426 | K160: 0.03027989905 | L160: 4.954692042 | M160: 0.0605486673 | P160: 35.76756398 | Q160: 0.02007910797
A161: 148 | B161: 18.3749112 | C161: 4.317595437 | D161: 780.6503681 | E161: 157.5302663 | F161: 118.1476997 | G161: 39.38256658 | H161: 15.61300736 | I161: 23.76955921 | J161: 0.03045722275 | K161: 0.03027716008 | L161: 4.955557979 | M161: 0.06053808699 | P161: 36.48564777 | Q161: 0.02007639612
A162: 149 | B162: 18.74240943 | C162: 4.360771391 | D162: 804.4199273 | E162: 162.2994188 | F162: 121.7245641 | G162: 40.5748547 | H162: 16.08839855 | I162: 24.48645615 | J162: 0.03044840583 | K162: 0.03027451546 | L162: 4.956394381 | M162: 0.06052787106 | P162: 37.21805255 | Q162: 0.02007377768
A163: 150 | B163: 19.11725761 | C163: 4.404379105 | D163: 828.9063834 | E163: 167.2125406 | F163: 125.4094055 | G163: 41.80313515 | H163: 16.57812767 | I163: 25.22500748 | J163: 0.03043989255 | K163: 0.0302719619 | L163: 4.957202255 | M163: 0.06051800684 | P163: 37.96506536 | Q163: 0.02007124941
A164: 151 | B164: 19.49960277 | C164: 4.448422896 | D164: 854.1313909 | E164: 172.27398 | F164: 129.205485 | G164: 43.06849499 | H164: 17.08262782 | I164: 25.98586718 | J164: 0.03043167237 | K164: 0.03026949624 | L164: 4.957982575 | M164: 0.06050848212 | P164: 38.72697898 | Q164: 0.02006880816
A165: 152 | B165: 19.88959482 | C165: 4.492907125 | D165: 880.1172581 | E165: 177.4882164 | F165: 133.1161623 | G165: 44.3720541 | H165: 17.60234516 | I165: 26.76970894 | J165: 0.0304237351 | K165: 0.03026711543 | L165: 4.95873628 | M165: 0.06049928511 | P165: 39.504092 | Q165: 0.02006645092
A166: 153 | B166: 20.28738672 | C166: 4.537836196 | D166: 906.886967 | E166: 182.8598647 | F166: 137.1448985 | G166: 45.71496618 | H166: 18.13773934 | I166: 27.57722684 | J166: 0.03041607092 | K166: 0.03026481652 | L166: 4.959464278 | M166: 0.06049040444 | P166: 40.29670901 | Q166: 0.02006417477
A167: 154 | B167: 20.69313445 | C167: 4.583214558 | D167: 934.4641939 | E167: 188.3936791 | F167: 141.2952593 | G167: 47.09841976 | H167: 18.68928388 | I167: 28.40913589 | J167: 0.03040867037 | K167: 0.03026259667 | L167: 4.960167446 | M167: 0.06048182914 | P167: 41.10514065 | Q167: 0.0200619769
A168: 155 | B168: 21.10699714 | C168: 4.629046704 | D168: 962.8733298 | E168: 194.0945572 | F168: 145.5709179 | G168: 48.52363929 | H168: 19.2574666 | I168: 29.26617269 | J168: 0.03040152429 | K168: 0.03026045315 | L168: 4.96084663 | M168: 0.06047354864 | P168: 41.9297038 | Q168: 0.0200598546
A169: 156 | B169: 21.52913708 | C169: 4.675337171 | D169: 992.1395025 | E169: 199.9675447 | F169: 149.9756585 | G169: 49.99188616 | H169: 19.84279005 | I169: 30.14909612 | J169: 0.03039462387 | K169: 0.0302583833 | L169: 4.961502649 | M169: 0.06046555273 | P169: 42.77072163 | Q169: 0.02005780525
A170: 157 | B170: 21.95971983 | C170: 4.722090543 | D170: 1022.288599 | E170: 206.0178396 | F170: 154.5133797 | G170: 51.5044599 | H170: 20.44577197 | I170: 31.05868793 | J170: 0.03038796061 | K170: 0.03025638458 | L170: 4.962136292 | M170: 0.06045783154 | P170: 43.62852379 | Q170: 0.02005582632
A171: 158 | B171: 22.39891422 | C171: 4.769311448 | D171: 1053.347286 | E171: 212.250797 | F171: 159.1880977 | G171: 53.06269924 | H171: 21.06694573 | I171: 31.99575351 | J171: 0.03038152628 | K171: 0.03025445453 | L171: 4.962748322 | M171: 0.06045037558 | P171: 44.50344652 | Q171: 0.02005391537
A172: 159 | B172: 22.84689251 | C172: 4.817004562 | D172: 1085.34304 | E172: 218.6719335 | F172: 164.0039501 | G172: 54.66798336 | H172: 21.7068608 | I172: 32.96112256 | J172: 0.03037531298 | K172: 0.03025259076 | L172: 4.963339478 | M172: 0.06044317568 | P172: 45.39583275 | Q172: 0.02005207006
A173: 160 | B173: 23.30383036 | C173: 4.865174608 | D173: 1118.304163 | E173: 225.2869324 | F173: 168.9651993 | G173: 56.3217331 | H173: 22.36608325 | I173: 33.95564985 | J173: 0.03036931306 | K173: 0.030250791 | L173: 4.96391047 | M173: 0.06043622297 | P173: 46.30603227 | Q173: 0.02005028812
A174: 161 | B174: 23.76990696 | C174: 4.913826354 | D174: 1152.259812 | E174: 232.1016488 | F174: 174.0762366 | G174: 58.02541219 | H174: 23.04519625 | I174: 34.98021594 | J174: 0.03036351915 | K174: 0.03024905302 | L174: 4.964461987 | M174: 0.06042950894 | P174: 47.23440188 | Q174: 0.02004856735
A175: 162 | B175: 24.2453051 | C175: 4.962964618 | D175: 1187.240028 | E175: 239.1221143 | F175: 179.3415857 | G175: 59.78052858 | H175: 23.74480057 | I175: 36.03572801 | J175: 0.03035792411 | K175: 0.03024737469 | L175: 4.964994692 | M175: 0.06042302532 | P175: 48.18130548 | Q175: 0.02004690564
A176: 163 | B176: 24.73021121 | C176: 5.012594264 | D176: 1223.275756 | E176: 246.3545429 | F176: 184.7659072 | G176: 61.58863574 | H176: 24.46551513 | I176: 37.12312061 | J176: 0.0303525211 | K176: 0.03024575396 | L176: 4.965509228 | M176: 0.06041676417 | P176: 49.14711424 | Q176: 0.02004530095
A177: 164 | B177: 25.22481543 | C177: 5.062720206 | D177: 1260.398877 | E177: 253.8053363 | F177: 190.3540022 | G177: 63.45133406 | H177: 25.20797754 | I177: 38.24335652 | J177: 0.03034730347 | K177: 0.03024418883 | L177: 4.966006214 | M177: 0.0604107178 | P177: 50.13220678 | Q177: 0.02004375132
A178: 165 | B178: 25.72931174 | C178: 5.113347409 | D178: 1298.642234 | E178: 261.4810892 | F178: 196.1108169 | G178: 65.37027229 | H178: 25.97284467 | I178: 39.39742762 | J178: 0.03034226484 | K178: 0.03024267739 | L178: 4.966486248 | M178: 0.06040487882 | P178: 51.13696924 | Q178: 0.02004225484
A179: 166 | B179: 26.24389797 | C179: 5.164480883 | D179: 1338.039661 | E179: 269.3885957 | F179: 202.0414468 | G179: 67.34714893 | H179: 26.76079322 | I179: 40.58635571 | J179: 0.03033739902 | K179: 0.03024121778 | L179: 4.966949909 | M179: 0.06039924007 | P179: 52.16179551 | Q179: 0.02004080968
A180: 167 | B180: 26.76877593 | C180: 5.216125691 | D180: 1378.626017 | E180: 277.5348552 | F180: 208.1511414 | G180: 69.3837138 | H180: 27.57252034 | I180: 41.81119346 | J180: 0.03033270006 | K180: 0.03023980822 | L180: 4.967397756 | M180: 0.06039379465 | P180: 53.20708733 | Q180: 0.02003941408
A181: 168 | B181: 27.30415145 | C181: 5.268286948 | D181: 1420.43721 | E181: 285.9270782 | F181: 214.4453087 | G181: 71.48176955 | H181: 28.40874421 | I181: 43.07302534 | J181: 0.03032816221 | K181: 0.03023844699 | L181: 4.967830327 | M181: 0.0603885359 | P181: 54.27325448 | Q181: 0.02003806633
A182: 169 | B182: 27.85023448 | C182: 5.320969818 | D182: 1463.510236 | E182: 294.5726931 | F182: 220.9295198 | G182: 73.64317328 | H182: 29.27020471 | I182: 44.37296857 | J182: 0.03032377991 | K182: 0.03023713241 | L182: 4.968248143 | M182: 0.06038345738 | P182: 55.36071491 | Q182: 0.02003676476
A183: 170 | B183: 28.40723917 | C183: 5.374179516 | D183: 1507.883204 | E183: 303.4793527 | F183: 227.6095145 | G183: 75.86983817 | H183: 30.15766408 | I183: 45.71217409 | J183: 0.03031954782 | K183: 0.03023586289 | L183: 4.968651708 | M183: 0.0603785529 | P183: 56.46989495 | Q183: 0.02003550781
A184: 171 | B184: 28.97538395 | C184: 5.427921311 | D184: 1553.595378 | E184: 312.6549407 | F184: 234.4912055 | G184: 78.16373518 | H184: 31.07190757 | I184: 47.09182761 | J184: 0.03031546075 | K184: 0.03023463687 | L184: 4.969041509 | M184: 0.06037381645 | P184: 57.60122942 | Q184: 0.02003429393
A185: 172 | B185: 29.55489163 | C185: 5.482200524 | D185: 1600.687206 | E185: 322.1075791 | F185: 241.5806843 | G185: 80.52689478 | H185: 32.01374412 | I185: 48.51315066 | J185: 0.03031151371 | K185: 0.03023345285 | L185: 4.969418013 | M185: 0.06036924227 | P185: 58.75516185 | Q185: 0.02003312163
A186: 173 | B186: 30.14598947 | C186: 5.53702253 | D186: 1649.200357 | E186: 331.8456351 | F186: 248.8842263 | G186: 82.96140878 | H186: 32.98400713 | I186: 49.97740165 | J186: 0.03030770189 | K186: 0.03023230939 | L186: 4.969781676 | M186: 0.06036482477 | P186: 59.93214464 | Q186: 0.02003198949
A187: 174 | B187: 30.74890925 | C187: 5.592392755 | D187: 1699.177758 | E187: 341.8777286 | F187: 256.4082964 | G187: 85.46943214 | H187: 33.98355516 | I187: 51.48587698 | J187: 0.03030402064 | K187: 0.03023120509 | L187: 4.970132934 | M187: 0.06036055855 | P187: 61.1326392 | Q187: 0.02003089613
A188: 175 | B188: 31.36388744 | C188: 5.648316682 | D188: 1750.663635 | E188: 352.2127397 | F188: 264.1595548 | G188: 88.05318492 | H188: 35.0132727 | I188: 53.03991222 | J188: 0.03030046546 | K188: 0.03023013861 | L188: 4.970472212 | M188: 0.06035643843 | P188: 62.3571162 | Q188: 0.02002984021
A189: 176 | B189: 31.99116519 | C189: 5.704799849 | D189: 1803.703547 | E189: 362.8598169 | F189: 272.1448626 | G189: 90.71495421 | H189: 36.07407095 | I189: 54.64088327 | J189: 0.03029703202 | K189: 0.03022910865 | L189: 4.970799917 | M189: 0.06035245937 | P189: 63.60605568 | Q189: 0.02002882044
A190: 177 | B190: 32.63098849 | C190: 5.761847848 | D190: 1858.344431 | E190: 373.8283847 | F190: 280.3712886 | G190: 93.45709619 | H190: 37.16688861 | I190: 56.29020757 | J190: 0.03029371614 | K190: 0.03022811395 | L190: 4.971116444 | M190: 0.06034861653 | P190: 64.87994731 | Q190: 0.02002783559
A191: 178 | B191: 33.28360826 | C191: 5.819466326 | D191: 1914.634638 | E191: 385.1281526 | F191: 288.8461145 | G191: 96.28203816 | H191: 38.29269276 | I191: 57.98934539 | J191: 0.03029051377 | K191: 0.0302271533 | L191: 4.971422175 | M191: 0.06034490523 | P191: 66.17929051 | Q191: 0.02002688445
A192: 179 | B192: 33.94928043 | C192: 5.877660989 | D192: 1972.623984 | E192: 396.769123 | F192: 297.5768423 | G192: 99.19228076 | H192: 39.45247967 | I192: 59.73980109 | J192: 0.03028742102 | K192: 0.03022622553 | L192: 4.971717478 | M192: 0.06034132095 | P192: 67.50459473 | Q192: 0.02002596587
A193: 180 | B193: 34.62826604 | C193: 5.936437599 | D193: =D192+I192 -> 2032.363785 | E193: 408.7616005 | F193: 306.5712004 | G193: 102.1904001 | H193: 40.64727569 | I193: =G193-H193 -> 61.54312444 | J193: =(D193-D192)/D192 -> 0.03028443413 | K193: =(E193-E192)/E192 -> 0.03022532951 | L193: =D193/E193 -> 4.972002708 | M193: =alpha/L193 -> 0.06033785933 | P193: =E193/C193 -> 68.85637955 | Q193: 0.02002507872
A194: 181 | B194: 35.32083136 | C194: 5.995801975 | D194: 2093.906909 | E194: 421.1162009 | F194: 315.8371506 | G194: 105.2790502 | H194: 41.87813818 | I194: 63.40091203 | J194: 0.03028154944 | K194: 0.03022446416 | L194: 4.972278209 | M194: 0.06033451617 | P194: 70.23517498 | Q194: 0.02002422194
A195: 182 | B195: 36.02724798 | C195: 6.055759995 | D195: 2157.307821 | E195: 433.8438604 | F195: 325.3828953 | G195: 108.4609651 | H195: 43.14615642 | I195: 65.31480869 | J195: 0.03027876347 | K195: 0.03022362841 | L195: 4.972544314 | M195: 0.06033128738 | P195: 71.64152159 | Q195: 0.02002339446
A196: 183 | B196: 36.74779294 | C196: 6.116317595 | D196: 2222.62263 | E196: 446.9558459 | F196: 335.2168844 | G196: 111.7389615 | H196: 44.4524526 | I196: 67.28650887 | J196: 0.03027607282 | K196: 0.03022282126 | L196: 4.972801341 | M196: 0.06032816906 | P196: 73.07597078 | Q196: 0.0200225953
A197: 184 | B197: 37.4827488 | C197: 6.177480771 | D197: 2289.909139 | E197: 460.4637641 | F197: 345.3478231 | G197: 115.115941 | H197: 45.79818278 | I197: 69.31775825 | J197: 0.03027347421 | K197: 0.03022204171 | L197: 4.973049602 | M197: 0.0603251574 | P197: 74.53908497 | Q197: 0.02002182348
A198: 185 | B198: 38.23240378 | C198: 6.239255579 | D198: 2359.226897 | E198: 474.3795725 | F198: 355.7846794 | G198: 118.5948931 | H198: 47.18453794 | I198: 71.41035519 | J198: 0.0302709645 | K198: 0.03022128884 | L198: 4.973289395 | M198: 0.06032224876 | P198: 76.03143781 | Q198: 0.02002107806
A199: 186 | B199: 38.99705185 | C199: 6.301648135 | D199: 2430.637252 | E199: 488.7155897 | F199: 366.5366922 | G199: 122.1788974 | H199: 48.61274504 | I199: 73.56615237 | J199: 0.03026854063 | K199: 0.03022056171 | L199: 4.973521008 | M199: 0.06031943959 | P199: 77.55361442 | Q199: 0.02002035813
A200: 187 | B200: 39.77699289 | C200: 6.364664616 | D200: 2504.203405 | E200: 503.4845061 | F200: 377.6133796 | G200: 125.8711265 | H200: 50.08406809 | I200: 75.78705843 | J200: 0.03026619966 | K200: 0.03021985945 | L200: 4.973744722 | M200: 0.06031672649 | P200: 79.10621164 | Q200: 0.02001966282
A201: 188 | B201: 40.57253275 | C201: 6.428311262 | D201: 2579.990463 | E201: 518.6993956 | F201: 389.0245467 | G201: 129.6748489 | H201: 51.59980926 | I201: 78.07503964 | J201: 0.03026393874 | K201: 0.03021918121 | L201: 4.973960804 | M201: 0.06031410616 | P201: 80.6898382 | Q201: 0.02001899129
... 112 more rows

Sheet Final (hidden)
A1: Main | B1: Piketty thinks inequality is deeply baked into the DNA of capitalism.
A2: Point | B2: But we can get more or less inequality -- it depends on the parameters.
B3: Low g and n will produce high K/Y and we will get Patrimonial Capitalism.
C4: K/Y of 6 or 7 years of national income is high (think Downton Abbey).
B5: A highly capitalized economy is associated with high income inequality.
C6: Capital is much more unevenly distributed than income so economies
C7: with high K/Y will have more income inequality.
A9: Loose | B9: r > g --> there is no mechanism that connects r and g so they can be close or far apart.
A10: Ends | C10: Piketty's warning is that r >>> g will produce high levels of income inequality that will destabilize society.
C11: The global tax on capital proposal is an attempt to close the gap between r and g.
B13: Piketty says diffusion of knowledge and education for all tends to reduce inequality, but there are two key, different forces of divergence:
C14: 1) Labor income is becoming much more unequal, with a few earning superstar amounts and everyone else's earnings stagnant.
C15: 2) High K/Y produces extreme inequality because K is much more unequally distributed than income from labor so a society where capital income is a dominant part of total income will be more unequal.
C16: Piketty says both of these forces are syncing up and driving massive inequality.
C17: This Excel file is only about the second of these forces and explains how the long run capital intensiveness of the economy is determined.
A19: Piketty v. | B19: Piketty is too complicated for non-experts. The only thing many Pikettians hear is that r > g so super rich are out of control. But remember:
A20: Pikettians | B20: If something cannot go on forever, it will stop.
B21: Piketty knows this and he is not saying that the rich will continue to get an increasing share forever.
B22: Marx once said, "I am not a Marxist." One day, Piketty will say "I am not a Pikettian."
C23: By the way, Marx thought K/Y would rise without bound until there was a revolution.
C24: He was right that K/Y was rising, but he did not have Piketty's data and he did not understand the Solow Model like you do.
A26: The | B26: Of course, there are anti-Pikettians also--there's even a book titled Anti-Piketty --> | J26: www.amazon.com/Anti-Piketty-Capital-21st-Century-Emmanuel-Martin/dp/1944424253
A27: Debate | B27: There are many parts of Piketty's argument that are controversial, but the key variable is undoubtedly g.
A28: Key Point --> | B28: No one knows what g will be. No one knows how it is determined.
B29: These two are on opposite ends of the spectrum:
C30: Pessimism: | D30: Gordon, R. (2016) The Rise and Fall of American Growth
C31: Optimism: | D31: Brynjolfsson, E. and A. McAfee (2014) The Second Machine Age
B32: The pessimists say we are in for big trouble, with low g. Gordon says that the outstanding, 2% per year increase in GDP per capita we enjoyed in the 20th century is unlikely to be repeated.
B33: By focusing on advances in digitization and artifical intelligence and connectivity, optimists like Brynjolfsson and McAfee argue for a future that is incredibly bright.
B34: They think that we are poised on some kind of singularity and are about to break out into a fantastic new world:
C35: "It will make a mockery of all that came before." (Location 1402 in the Kindle edition of The Second Machine Age.)
B36: So who's right? The worriers who can't see how we can keep up the pace of tachnological progress or the dreamers who see a futuristic, sci-fi paradise of technology?
B37: The reason why we get such divergent forecasts and why we cannot answer the question is because we still do not understand growth and development.
B38: We know the market system has something to do with it, but the details remain shrouded in mystery.
B39: Adam Smith wrote An Inquiry into the Nature and Causes of the Wealth of Nations in 1776.
B40: He was asking a basic question: Why are some countries rich and others poor?
B41: A few centuries later, the Solow Model helps a little, but we still do not have a complete answer.
B42: Figuring out the evolution of a market economy continues to be the most important open problem in economics.
A44: Last | B44: Piketty's Capital was translated to English in 2014 and he became a rock star.
A45: Video | B45: He even made it to the Colbert Report! If you are up for one last short video, you can watch him here:
B46: http://www.cc.com/video-clips/e301vf/the-colbert-report-thomas-piketty
